Cogmind - Beta 16 @@@ ROGUE MODE // 2026.01.02 @ 12:11:05 Player: Dwarfinator Result: Destroyed Tau Ceti IV! Performance ------------- Evolutions (9) 4500 Regions Visited (41) 8200 Robots Destroyed (986) 4930 Value Destroyed (55360) 55360 Prototype IDs (402) 8040 Alien Tech Used (6) 1200 Bonus (66034) 66034 TOTAL SCORE: 148264 Bonus ------- Triggered High Security 500 High Alert Combat Kills 23016 Follower Combat Kills 4295 Awakened Behemoth Slayer 1000 Entered Garrisons 1000 Used RIF Installer 1500 Entered DSFs 500 Network Hubs Disabled 400 Aligned with FarCom 300 Met Imprinter 300 Destroyed Z-Imprinter 1000 Triggered Deep Caves Wall 500 Exposed GOLEM Chamber 500 Acquired ECA 300 Built Enhanced Grunts 300 Met R17 at Cetus 500 Destroyed MAIN.C Guards 500 Met MAIN.C 5000 Destroyed MAIN.C Shell 5000 Destroyed MAIN.C 10000 Met Architect 300 Started Test 138-B 500 Started Test 138-C 8000 Destroyed A8 300 Destroyed A6 400 Destroyed A2 1000 Win 3000 Friendly Fire -3877 Cogmind --------- Core Integrity 1269/1600 Matter 17/300 Energy 1378/1640 System Corruption 0% Temperature Cool (11) Movement Hovering (40) Location Subspace Parts ------- > --- POWER (3) -------- Hybrid Graviton Reactor Concept Zero-point Core Concept Zero-point Core > --- PROPULSION (7) --- Combat Antigrav System Combat Linear Gravjet Combat Linear Gravjet Experimental Antigrav System Concept Combat Aerolev Unit Concept Gyrokinetic System Concept Gyrokinetic System > --- UTILITY (11) ----- Concept Antigrav Storage Unit Experimental Targeting Computer Experimental Targeting Computer Experimental Core Analyzer Experimental Kinecellerator Experimental Weapon Cycler Advanced Reaction Control System Concept Phase Shift Module Experimental Utility Shielding Graphene Brace Concept Energy Mantle > --- WEAPON (4) ------- XL Autogun Subcomponent XL Autogun Subcomponent XL Autogun Subcomponent XL Autogun Subcomponent > --- INVENTORY (25) --- Zero-point Reactor Combat Antigrav System Combat Antigrav System Desublimator Experimental Cooling System Superbattery (1447) Concept NT7 Matterbank (653) Experimental Targeting Computer Core Analyzer Experimental Utility Shielding Experimental Utility Shielding Experimental Utility Shielding Improved Weapon Shielding Experimental Weapon Shielding Experimental Focal Shield Concept Beam Splitter Experimental EM Shield Compact HERF Cannon Concept Plasma Driver Concept Miniperforator Omega Cannon Peak State ------------ > --- POWER ------------ Hybrid Graviton Reactor Concept Zero-point Core Concept Zero-point Core > --- PROPULSION ------- Experimental Antigrav System Gravjet Array Concept Combat Aerolev Unit Concept Combat Aerolev Unit Concept Gyrokinetic System Concept Gyrokinetic System > --- UTILITY ---------- Concept Antigrav Storage Unit Experimental Targeting Computer Experimental Kinecellerator Advanced Transmission Jammer Concept Cloak Mesh Concept Cloak Mesh Centrium Medium Armor Plating Graphene Brace Concept Energy Mantle Concept Navigation Harness > --- WEAPON ----------- XL Autogun Array > --- INVENTORY -------- Combat Antigrav System Combat Antigrav System Combat Antigrav System Combat Antigrav System Combat Antigrav System Experimental Antigrav System Concept Gyrokinetic System Experimental Cooling System Superbattery Concept NT7 Matterbank Improved Particle Charger Experimental Kinecellerator Advanced Weapon Cycler Concept Phase Shift Module Concept Phase Shift Module Improved Utility Shielding Experimental Weapon Shielding Concept Beam Splitter Experimental EM Shield Long-range Tractor Beam Transdimensional Reconstructor Concept Plasma Driver Concept Miniperforator Supercharged Sigix Terminator [Rating: 289] Favorites ----------- Power Improved Deuterium Engine Engine Improved Deuterium Engine Power Core Concept Zero-point Core Reactor Improved Quantum Reactor Propulsion Armored Treads Treads Armored Treads Leg Assembled Alloy Leg Wheel Armored Huge Wheel Hover Unit Combat Antigrav System Flight Unit Flight Unit Utility High-capacity Storage Unit Device Seismic Detector Storage High-capacity Storage Unit Processor Core Analyzer Hackware Relay Coupler [NC] Protection Medium Regenerative Plating Artifact Phase Redirector Weapon Hypervelocity Coil Gun Energy Gun Gatling Laser Energy Cannon Assembled Focal Cannon Ballistic Gun Hypervelocity Coil Gun Ballistic Cannon Heavy Assault Cannon Launcher Mini Grenade Launcher Special Weapon Improved Remote Datajack Impact Weapon Flail Slashing Weapon Power Sword Piercing Weapon CR-A16's Pointy Stick Special Melee Weapon Improved Datajack Build | -11 -10 -10 -9 -9 -9 -8 -8 -8 -8 -8 -8 -7 -7 -7 -7 -7 -7 -7 -6 -6 -6 -6 -6 -6 -6 -5 -5 -5 -5 -4 -4 -4 -4 -4 -3 -3 -3 -2 -1 -1 -1 ------- Run | Yrd Mat Min Mat Min Exi Min Mat Gar Mat Gar Mat Fac Was Fac Low Low Zio Dee Pro Fac Gar Ext Cet Arc Hub Fac Gar Fac DSF Fac Was Fac Gar Fac Res Qua Frg Res Acc Com Ac0 Slots Evolved 18 | . . . 2 . . . 2 . . . . 2 . . . . . . . 2 . . . . . 2 . . . 2 . . . . 2 . . 2 2 . . Power 2 | . . . . . . . . . . . . . . . . . . . . . . . . . . 1 . . . . . . . . . . . . 1 . . Propulsion 5 | . . . 2 . . . . . . . . . . . . . . . . . . . . . . . . . . . . . . . 2 . . . 1 . . Utility 9 | . . . . . . . . . . . . 2 . . . . . . . 2 . . . . . 1 . . . 2 . . . . . . . 2 . . . Weapon 2 | . . . . . . . 2 . . . . . . . . . . . . . . . . . . . . . . . . . . . . . . . . . . Parts Attached 444 | 2 11 7 14 4 3 26 30 6 . 12 10 11 . 17 4 1 8 22 5 4 16 7 7 4 2 17 6 . 14 10 4 5 8 21 6 18 47 8 7 28 12 Power 40 | . 1 2 1 1 . 3 1 1 . 1 1 . . 4 . . . 2 2 . 4 . 1 . . 4 1 . 1 . 1 . . . . 2 5 . 1 . . Engine 19 | . 1 2 1 1 . 1 1 1 . 1 . . . 3 . . . 1 1 . 3 . . . . 1 1 . . . . . . . . . . . . . . Core 10 | . . . . . . 2 . . . . 1 . . 1 . . . . 1 . . . . . . 3 . . . . . . . . . . 1 . 1 . . Reactor 11 | . . . . . . . . . . . . . . . . . . 1 . . 1 . 1 . . . . . 1 . 1 . . . . 2 4 . . . . Propulsion 104 | . 4 1 6 1 . 16 7 2 . 6 1 3 . 2 . . 1 4 3 2 4 1 . . . 3 1 . 1 1 . . . . 4 4 17 . 1 8 . Treads 35 | . 4 1 . . . 3 5 1 . 3 1 . . . . . . . 3 2 3 1 . . . 3 1 . . 1 . . . . . 2 1 . . . . Leg 7 | . . . . . . 1 . . . . . . . . . . . 3 . . . . . . . . . . . . . . . . . 1 2 . . . . Wheel 27 | . . . . . . 9 2 1 . 3 . 2 . 2 . . 1 . . . 1 . . . . . . . 1 . . . . . 3 1 1 . . . . Hover 25 | . . . 1 . . . . . . . . 1 . . . . . 1 . . . . . . . . . . . . . . . . . . 13 . 1 8 . Flight 10 | . . . 5 1 . 3 . . . . . . . . . . . . . . . . . . . . . . . . . . . . 1 . . . . . . Utility 193 | . 1 2 4 1 2 2 3 . . . 3 4 . 9 3 1 4 12 . 1 4 4 5 2 1 9 2 . 3 7 2 5 6 21 2 10 22 8 3 18 7 Device 104 | . 1 2 1 1 . 1 1 . . . 1 3 . 5 2 1 . 3 . . 2 2 3 2 . 5 1 . 2 4 2 3 . 14 2 7 14 4 1 8 6 Storage 11 | . . . . . 1 1 1 . . . . . . . . . . 1 . . 1 1 . . . 1 . . . . . 1 . . . . 2 . . 1 . Processor 19 | . . . 1 . . . 1 . . . . 1 . 1 1 . 4 . . . . . . . . 1 . . 1 . . 1 . . . . 2 1 . 4 . Hackware 20 | . . . . . . . . . . . 1 . . 1 . . . . . 1 . . . . . . 1 . . 3 . . 6 4 . . . 1 2 . . Protection 38 | . . . 2 . 1 . . . . . 1 . . 2 . . . 8 . . 1 1 2 . 1 2 . . . . . . . 3 . 2 4 2 . 5 1 Artifact 1 | . . . . . . . . . . . . . . . . . . . . . . . . . . . . . . . . . . . . 1 . . . . . Weapon 107 | 2 5 2 3 1 1 5 19 3 . 5 5 4 . 2 1 . 3 4 . 1 4 2 1 2 1 1 2 . 9 2 1 . 2 . . 2 3 . 2 2 5 Energy Gun 15 | 2 1 . . . . 2 1 . . . . . . 1 . . . . . 1 3 1 . . . . . . . . . . . . . . 1 . 2 . . Energy Cannon 9 | . 2 . . . . . . . . . . . . . . . . 1 . . . . . 1 . . . . 1 1 1 . . . . . 1 . . . 1 Ballistic Gun 37 | . . . . . . 3 12 3 . 2 3 . . . . . 1 . . . 1 . . . . . . . 8 . . . . . . . . . . . 4 Ballistic Cannon 8 | . . . . 1 . . . . . . . 2 . . 1 . . . . . . . . . . . 2 . . . . . . . . . . . . 2 . Launcher 12 | . 1 1 1 . 1 . 3 . . . 2 . . 1 . . . 1 . . . . . . . . . . . . . . . . . . 1 . . . . Special Weapon 8 | . . . . . . . 1 . . . . . . . . . 1 . . . . . 1 . 1 1 . . . . . . 2 . . 1 . . . . . Impact Weapon 6 | . 1 . 2 . . . 1 . . . . . . . . . . 1 . . . . . . . . . . . . . . . . . 1 . . . . . Slashing Weapon 6 | . . . . . . . 1 . . 2 . 1 . . . . 1 . . . . 1 . . . . . . . . . . . . . . . . . . . Piercing Weapon 2 | . . . . . . . . . . . . . . . . . . 1 . . . . . . . . . . . 1 . . . . . . . . . . . Special Melee Weapon 4 | . . 1 . . . . . . . 1 . 1 . . . . . . . . . . . 1 . . . . . . . . . . . . . . . . . Unidentified Prototypes 46 | . 2 . 1 . . . 5 . . . . 1 . . . . . 7 . . 1 . 3 . . . . . 1 . 1 . . . . 10 9 . 2 1 2 Corrupted Parts 1 | . . . . . . . . . . . . . . . . . . . . . . . . . . . . . . . . . . . . . . . . 1 . System Corruption 1 | . . . . . . . . . . . . . . . . . . . . . . . . . . . . . . . . . . . . . . . . 1 . Parts Lost 77 | . . . 2 . . 8 11 3 . 3 8 . 1 1 . . . 11 1 . 5 . . . 1 4 . . . . . . . 3 . . 4 1 2 6 2 Power 8 | . . . 1 . . 2 . . . . . . 1 . . . . 1 1 . 1 . . . . 1 . . . . . . . . . . . . . . . Propulsion 15 | . . . . . . 3 4 1 . 1 1 . . . . . . 2 . . 1 . . . . . . . . . . . . . . . . . . 1 1 Utility 34 | . . . 1 . . 1 1 . . . 4 . . 1 . . . 8 . . 1 . . . 1 1 . . . . . . . 2 . . 4 1 2 5 1 Weapon 20 | . . . . . . 2 6 2 . 2 3 . . . . . . . . . 2 . . . . 2 . . . . . . . 1 . . . . . . . Highest Loss Streak 7 | . . . 1 . . 2 3 1 . 3 7 . 1 1 . . . 3 1 . 2 . . . 1 3 . . . . . . . 2 . . 1 1 2 3 1 To Critical Strikes 3 | . . . . . . . 1 1 . . . . . . . . . . . . 1 . . . . . . . . . . . . . . . . . . . . Average Backups 18 | 2 4 4 4 3 10 26 29 31 32 31 22 16 15 15 16 15 16 15 15 14 15 14 15 15 15 16 15 16 16 15 17 16 16 16 17 18 21 23 23 21 22 Power . | . . . . . 1 1 . 1 1 . . . . . . . . . . . . . . . . . . . . . . . . . . . . 1 . 1 1 Propulsion 2 | 1 1 1 1 . . 3 6 7 7 6 4 3 3 2 1 1 . . . . . 1 1 1 1 1 . . . . . . . . . . 3 3 3 4 2 Utility 10 | . . . 1 2 7 13 11 11 13 13 9 6 6 8 8 8 9 11 12 10 9 9 9 9 9 9 10 11 11 9 11 11 11 11 12 12 14 15 15 12 15 Weapon 4 | . 3 1 2 1 1 6 9 11 9 8 7 5 4 4 3 4 5 2 3 3 3 3 4 3 3 3 2 3 3 3 3 3 3 2 3 3 2 2 2 1 3 Tool/Special . | . . . . . . . . . . . . . . . . . . . . . . . . . . . . . . . . . . . . . . . . . . Unused Backups 169 | 2 6 3 4 2 1 18 23 5 4 3 5 1 . 6 . 4 6 9 . . 1 1 . . . 7 2 . 6 . . . 3 8 . 2 12 1 2 10 12 Power 16 | . . 1 . 1 . 7 1 1 . . . . . . . . . 1 . . . . . . . 1 . . . . . . . . . . . . . 2 1 Propulsion 27 | . 6 1 2 . . . 1 . 3 2 4 . . 2 . . . 1 . . 1 . . . . 1 . . . . . . 1 . . . 1 . . . 1 Utility 93 | . . 1 1 1 1 8 13 1 . 1 1 . . 1 . 1 5 7 . . . 1 . . . 4 2 . 6 . . . 2 5 . 1 10 1 1 8 10 Weapon 30 | 2 . . . . . 2 8 3 1 . . 1 . 3 . 3 1 . . . . . . . . 1 . . . . . . . 3 . 1 1 . . . . Tool/Special 3 | . . . 1 . . 1 . . . . . . . . . . . . . . . . . . . . . . . . . . . . . . . . 1 . . Average Slot Usage (%) 82 | . 69 79 90 38 65 82 89 89 90 86 84 86 77 83 79 83 76 76 81 89 85 85 85 84 85 73 80 82 85 87 89 89 88 88 86 72 79 77 79 92 89 Engine 4 | . 5 13 10 . 10 2 4 9 9 9 5 . . 4 7 7 7 3 2 . 4 6 1 . . 2 5 5 5 5 5 5 5 5 4 2 . . . . . Core 1 | . . . . . . 7 4 . . . 3 7 4 1 . . . . 2 6 1 . . . . . . . . . . . . . . . 1 4 8 7 8 Reactor 1 | . . . . . . . . . . . . . . . . . . 3 . . . . 4 6 6 5 5 5 5 5 5 5 5 5 4 4 5 4 4 3 4 Treads 8 | . 26 27 . . . . 10 10 9 12 16 14 6 7 10 23 15 12 5 13 11 8 6 6 6 6 14 17 15 4 5 5 5 5 3 7 . . . . . Leg 2 | . . . . . . . . . . . . . . . . . . 13 24 13 6 . . . . . . . . . . . . . . 1 . . . . . Wheel 8 | . . . . . . 32 25 25 27 20 10 7 15 15 12 7 10 3 . . . 4 6 6 6 4 1 . . 5 5 5 5 5 10 9 2 . . . . Hover 3 | . . . 10 . . . . . . . . . . . . . . . . . . . . . . . . . . . . . . . . . 20 21 23 27 28 Flight 1 | . . . 26 11 11 4 . . . . . . . . . . . . . . . . . . . . . . . . . . . . . . . . . . . Device 10 | . 13 18 8 16 11 . . . . . 1 8 7 8 9 6 7 3 . 6 7 13 13 11 11 9 15 17 21 24 23 24 17 21 23 21 21 20 20 21 24 Storage 6 | . . . . . 10 11 8 9 9 9 8 7 7 7 7 7 7 7 7 6 6 6 6 6 6 5 5 5 5 5 5 5 5 5 4 4 4 4 4 4 4 Processor 4 | . . . 1 . . . . . . . . 4 7 7 7 7 7 7 7 6 6 6 6 6 6 7 5 5 2 . . 1 5 . . . 2 4 4 10 12 Hackware 2 | . . . . . . . . . . . 1 7 7 3 . . . . . 4 6 6 6 6 6 5 5 5 2 4 7 5 8 10 9 5 4 4 4 . . Protection 4 | . . . 11 . . . . . . . . 1 . 2 4 7 6 9 7 5 5 6 5 6 6 9 5 5 6 9 10 10 9 8 4 7 6 8 8 7 4 Energy Gun 1 | . 1 . 3 . . 4 . . . . . . . . . . . . . 4 9 20 20 20 19 5 . . . . . . . . . . . . . . . Energy Cannon 2 | . 18 13 5 . . . . . . . . . . . . . . 7 15 13 11 5 . . 6 2 . . . 2 1 . 1 4 4 . . . . 2 . Ballistic Gun 8 | . . . . . . 13 31 30 36 28 35 19 . . . . 3 1 . . . . . . . 2 . . 12 16 16 19 17 15 13 2 3 3 3 . 4 Ballistic Cannon 2 | . . . . . . . . . . . . 5 9 7 12 15 4 . . . . . . . . . 7 11 2 . . . . . . . . . . 5 . Launcher 1 | . . . 3 . 10 2 . 1 . . . . 10 . . . . . 7 1 . . . . . . . . . . . . . . . . . . . . . Impact Weapon 1 | . 2 1 9 10 10 1 2 4 . . . . . . . . . . . . . . . . . . . . . . . . . . . . . . . . . Peak Build Rating 289 | 2 12 17 16 10 18 26 41 40 37 46 46 51 45 52 52 50 73 98 88 91 102 93 93 95 93 126 119 110 128 139 137 136 135 129 123 162 238 260 282 289 271 Average Rating 86 | 1 9 11 13 5 13 20 34 37 36 39 42 47 41 46 48 47 59 66 83 88 92 88 88 90 92 107 106 110 115 125 127 132 130 117 116 134 197 253 275 258 255 On Entrance 85 | . . 1 . . 6 18 23 39 36 37 45 42 45 39 52 50 46 71 88 79 91 90 82 91 93 91 99 110 110 111 129 129 132 128 113 121 156 238 249 261 262 Avg Prop Armor Cover (%) 10 | . 32 31 7 . 5 6 8 8 8 8 13 14 9 9 8 16 12 14 5 8 8 11 11 11 10 8 9 . 9 8 9 8 9 10 8 14 11 . . . . Naked Turns 37 | . 19 11 7 . . . . . . . . . . . . . . . . . . . . . . . . . . . . . . . . . . . . . . Heaviest Build 225 | 4 12 15 13 4 54 213 224 225 221 224 224 75 75 93 102 102 95 115 110 110 110 92 87 92 110 124 125 125 125 116 121 124 124 124 120 120 138 94 106 132 108 Greatest Support 150 | 3 46 46 18 4 4 46 83 80 44 80 40 44 44 44 40 12 40 108 108 60 150 150 75 28 28 150 135 135 135 95 48 90 70 70 58 70 104 96 112 116 113 Greatest Overweight (x) 18 | 1 . 1 1 . 17 18 8 7 5 7 7 2 2 3 8 8 7 7 1 1 3 3 3 3 3 4 4 . 3 3 2 4 4 4 4 3 4 . . 1 . Average Overweight (x) 2 | . . . . . 9 4 4 4 5 4 3 1 1 1 2 7 3 2 . 1 . 2 2 2 3 2 . . . 2 2 2 3 3 2 2 . . . . . Largest Inventory Capacity 35 | 5 5 5 5 5 20 35 35 35 35 35 35 20 20 20 20 20 20 20 20 20 20 20 20 20 20 20 20 20 20 20 20 20 20 20 20 20 25 25 25 25 25 Average Capacity 22 | 5 5 5 5 5 18 32 34 35 35 35 26 20 20 20 20 20 20 20 20 20 20 20 20 20 20 20 20 20 20 19 20 20 20 20 20 20 23 25 25 25 25 Most Carried 35 | 5 5 5 5 5 20 35 35 35 35 35 35 20 20 20 20 20 20 20 20 20 20 20 20 20 20 20 20 20 20 20 20 20 20 20 20 20 25 25 25 25 25 Average Carried 21 | 2 4 4 4 3 14 30 33 34 34 34 26 19 19 19 19 19 19 18 19 19 19 19 20 20 20 19 19 20 19 18 19 19 19 19 20 19 22 24 24 24 23 Final Capacity 35 | 5 5 5 5 5 20 35 35 35 35 35 20 20 20 20 20 20 20 20 20 20 20 20 20 20 20 20 20 20 20 20 20 20 20 20 20 20 25 25 25 25 25 Final Carried 35 | 5 5 5 5 5 20 35 34 35 35 35 20 20 20 20 20 20 20 20 20 20 20 20 20 20 20 20 20 20 20 20 20 20 20 20 20 20 25 24 25 25 22 Class Distribution -------------------- 23% | Scavenger-Tank 15% | Mutant 14% | Hauler-Skirmisher 12% | Gunner 10% | Tank 5% | Scientist-Mutant 4% | Scavenger-Gunner 3% | Scavenger-Mutant 3% | Hauler-Mutant Dominant Class ---------------- Mutant | -10/Materials Mutant | -10/Mines Sprinter | -9/Materials Mutant | -9/Mines Mutant | -9/Exiles Hauler-Mutant | -8/Mines Hauler-Skirmisher | -8/Materials Hauler-Skirmisher | -8/Garrison Scavenger-Skirmisher | -8/Materials Hauler-Skirmisher | -8/Garrison Scavenger-Skirmisher | -8/Materials Scavenger-Gunner | -7/Factory Scientist-Gunner | -7/Waste Scientist-Mutant | -7/Factory Scientist-Gunner | -7/Lower Caves Gunner | -7/Lower Caves Gunner | -7/Zion Mutant | -7/Deep Caves Gunner | -6/Proximity Caves Scavenger-Gunner | -6/Factory Scavenger-Tank | -6/Garrison Scavenger-Tank | -6/Extension Scavenger-Tank | -6/Cetus Scavenger-Tank | -6/Archives Scavenger-Tank | -6/Hub_04(d) Scavenger-Tank | -5/Factory Scavenger-Tank | -5/Garrison Scavenger-Tank | -5/Factory Scavenger-Tank | -5/DSF Tank | -4/Factory Scavenger-Tank | -4/Waste Tank | -4/Factory Tank | -4/Garrison Tank | -4/Factory Scavenger-Tank | -3/Research Scavenger-Tank | -3/Quarantine Scavenger-Tank | -3/Protoforge Scavenger-Tank | -2/Research Scavenger-Tank | -1/Access Scavenger-Tank | -1/Command Scavenger-Gunner | -1/Access_0 Resources | -11 -10 -10 -9 -9 -9 -8 -8 -8 -8 -8 -8 -7 -7 -7 -7 -7 -7 -7 -6 -6 -6 -6 -6 -6 -6 -5 -5 -5 -5 -4 -4 -4 -4 -4 -3 -3 -3 -2 -1 -1 -1 ----------- Run | Yrd Mat Min Mat Min Exi Min Mat Gar Mat Gar Mat Fac Was Fac Low Low Zio Dee Pro Fac Gar Ext Cet Arc Hub Fac Gar Fac DSF Fac Was Fac Gar Fac Res Qua Frg Res Acc Com Ac0 Matter Collected 44925 | 220 146 139 335 120 80 1423 3448 1064 262 1419 835 456 . 1073 489 455 150 1376 132 160 537 400 134 66 14 1978 757 . 598 1093 288 1201 1175 1653 183 1540 5141 1537 2145 8333 2370 Remotely 6586 | . . . . . . . . . . . . 151 . 31 . . . 122 . 118 74 . . . . 401 546 . 189 712 . 875 515 744 . 414 1122 . 174 398 . Salvage Created 45479 | 187 200 86 857 178 . 926 3023 913 370 1116 701 627 242 761 160 255 . 1482 228 439 2314 498 160 111 1216 2785 464 . 756 1109 510 1108 1486 2223 197 1780 4448 1533 2122 6244 1664 Parts 2194 | 11 12 10 42 4 . 60 134 41 18 66 41 22 . 58 9 9 . 45 9 19 83 12 19 8 50 148 26 . 33 60 23 71 78 118 17 94 254 72 111 196 111 Haulers Intercepted 25 | . . . 5 . . . 3 . 1 . 3 . . 5 . . . . . . . . . . 4 . . . . . . 2 . . . 1 . . 1 . . Recyclers Shooed 17 | 1 1 . 3 1 . 2 3 . 1 . . . . . . . . . . . . 1 . . . . . . . . . . . 1 . . . 1 1 1 . Parts Field Recycled . | . . . . . . . . . . . . . . . . . . . . . . . . . . . . . . . . . . . . . . . . . . Retrieved Matter . | . . . . . . . . . . . . . . . . . . . . . . . . . . . . . . . . . . . . . . . . . . Parts Self-Destructed 21 | . . . . . . . . . . . . . . . 4 9 . . 8 . . . . . . . . . . . . . . . . . . . . . . Prevented 6 | . . . . . . . . . . . . . . . . . . . 6 . . . . . . . . . . . . . . . . . . . . . . Parts Restored 11 | . . . . . . . . . . . . . . . . . . . . . . . . . . . . . . . . . . . . . 11 . . . . Faulty 11 | . . . . . . . . . . . . . . . . . . . . . . . . . . . . . . . . . . . . . 11 . . . . Kills | -11 -10 -10 -9 -9 -9 -8 -8 -8 -8 -8 -8 -7 -7 -7 -7 -7 -7 -7 -6 -6 -6 -6 -6 -6 -6 -5 -5 -5 -5 -4 -4 -4 -4 -4 -3 -3 -3 -2 -1 -1 -1 ------- Run | Yrd Mat Min Mat Min Exi Min Mat Gar Mat Gar Mat Fac Was Fac Low Low Zio Dee Pro Fac Gar Ext Cet Arc Hub Fac Gar Fac DSF Fac Was Fac Gar Fac Res Qua Frg Res Acc Com Ac0 Combat Hostiles Destroyed 792 | . 6 3 17 . . 19 49 24 6 26 15 9 1 4 7 6 . 55 5 9 31 8 2 . 8 42 12 . 8 13 2 11 26 22 2 15 63 11 21 216 18 Melee 2 | . . . . . . . . . . . . . . . . . . . . . 1 . . . . . . . . 1 . . . . . . . . . . . Guns 357 | . . . . . . 6 39 15 6 9 9 9 . . . . . 10 . 1 7 7 2 . 5 40 1 . 7 8 2 9 26 20 2 13 58 11 21 11 3 Cannons 92 | . . 1 . . . 2 . . . . . . . 4 2 6 . 5 3 6 8 . . . 1 2 7 . 1 1 . . . 1 . 1 3 . . 24 14 AOE 323 | . 3 2 16 . . 11 9 7 . 17 6 . 1 . 5 . . 38 2 2 14 . . . 1 . 4 . . 1 . 2 . 1 . . . . . 181 . Classes Destroyed 39 | 2 3 1 5 . . 2 5 . . 2 . . 1 . 1 1 . 4 . . 2 1 . . . 1 . . 1 . . . . . . 3 3 . 1 . . Worker 49 | . . . 2 5 . 5 4 . . . 1 1 . 7 . . . . . . . . . . 5 4 . . . 2 . 2 . 1 . 2 5 . . 3 . Builder 28 | . . . . . . 4 2 . 1 . . . . 1 . . . . . . . . . . 4 1 . . . 1 . 2 . 2 3 3 2 . 2 . . Tunneler 18 | 5 2 1 . . . 2 1 . . . . . . 1 . . . . . . . . . . 1 2 . . . . . . . 1 . . . 2 . . . Hauler 25 | . . . 5 . . . 3 . 1 . 3 . . 5 . . . . . . . . . . 4 . . . . . . 2 . . . 1 . . 1 . . Recycler 37 | 1 . . 5 1 . 2 6 . 1 . . 1 . 2 . . . . . . . 1 . . 1 . . . . . . . . 5 . 1 . 4 1 5 . Carrier 17 | . . . . . . . . . . . . . . . . . . . . . . . . . . . . . 1 . . . . . . . . . . 16 . Minesweeper 1 | . . . . . . . . . . . . . . . . 1 . . . . . . . . . . . . . . . . . . . . . . . . . Mechanic 4 | . . . 1 . . . . . . . . . . . . . . . . . . . . . . . . . . 1 . 1 . 1 . . . . . . . Operator 19 | . . . 2 . . . 1 . 1 . . 1 . 3 . . . . . . . . . 3 . 2 . . . . . 2 . 2 . 1 . . 1 . . Drone 3 | . . . . . . . . . . . . . . . . . . . . . . . . . . . . . . . . . . . . . 3 . . . . Turret 3 | . . . . . . . . . . . . . . . . . . . . . . . . . . . . . . . . . . . . . . . 3 . . Watcher 16 | . 2 . 1 . . . 4 . . . . . . . . . . . . . . . . . 2 3 . . . . . . . . . 1 . . 1 2 . Swarmer 126 | . 3 2 14 . . 7 12 7 2 9 3 . . . 4 . . . 2 . 9 2 . . 2 . 4 . 1 . . 2 12 4 . . 3 . . 22 . Cutter 9 | . . . . . . . . . . 2 . . . . . . . . . . . . . . . . . . . . . . . . . . . 1 . 6 . Saboteur 8 | . . . . . . . . . . . . . . . . . . . . . . . . . . 1 . . . . . . . 1 . . . . . 6 . Grunt 231 | . 3 1 2 . . 10 21 11 4 9 7 7 . 2 . 4 . . . 7 14 . . . 1 23 6 . 3 8 . . 9 10 . 1 5 . 8 55 . Brawler 25 | . . . . . . 2 . . . . 2 . . . . . . . . . 1 . . . . 2 . . . 2 . . 1 1 . . 1 . . 13 . Duelist 18 | . . . . . . . 2 . . . 1 . . . . 1 . . . . . . . . . 1 . . . . . . . . . . . . . 13 . Protector 10 | . . . . . . . 1 . . . 1 . . . . . . . . . . . . . . . . . . 1 . . . . . . . . . 7 . Researcher 5 | . . . . . . . . . . . . . . . . . . . . . . . . . . . . . . . . . . . . 2 3 . . . . Sentry 66 | . . . 1 . . . 7 4 . 3 1 2 . . . . . . 1 1 5 4 . . 4 4 . . 1 1 . 2 2 1 . 2 10 3 4 3 . Demolisher 8 | . . . . . . . . . . . . . . . . . . . . . . 1 . . . . . . . . 1 . . . . . . . . 6 . Specialist 18 | . . . . . . . 4 . . . . . . . . . . . . . . . . . . . . . 1 . . . . . . . . . . 13 . Hunter 54 | . . . . . . . 1 2 . . . . . 1 1 1 . . . . . . . . . 3 1 . 2 . . 4 . . . 2 2 4 . 30 . Programmer 96 | . . . . . . . . . . 3 . . . 1 . . . . . 1 . . . . 1 8 1 . . . . 3 2 5 2 8 16 1 9 35 . Heavy 4 | . . . . . . . 1 . . . . . . . . . . . . . . . . . . . . . 1 . . . . . . . . 2 . . . Behemoth 4 | . . . . . . . . . . . . . . . . . . . . . 1 1 . . . . 1 . . 1 . . . . . . . . . . . Compactor 2 | . . . . . . . . . . . . . 1 . . . . . . . . . . . . . . . . . 1 . . . . . . . . . . Cetus Guard 2 | . . . . . . . . . . . . . . . . . . . . . . . 2 . . . . . . . . . . . . . . . . . . M Guard 2 | . . . . . . . . . . . . . . . . . . . . . . . . . . . . . . . . . . . . . . . . 2 . Enhanced Grunt 11 | . . . . . . . . . . . . . . . . . . . . . . . . . . . . . . . . . . . . . . . . . 11 Enhanced Sentry 1 | . . . . . . . . . . . . . . . . . . . . . . . . . . . . . . . . . . . . . . . . . 1 Enhanced Hunter 3 | . . . . . . . . . . . . . . . . . . . . . . . . . . . . . . . . . . . . . . . . . 3 Hotshot 4 | . . . . . . . . . . . . . . . . . . . . . . . . . . . . . . . . . . . . . 4 . . . . Decapitator 11 | . . . . . . . . . . . . . . . . . . . . . . . . . . . . . . . . . . . . . 11 . . . . Immortal 4 | . . . . . . . . . . . . . . . . . . . . . . . . . . . . . . . . . . . . . 4 . . . . Combat Programmer 2 | . . . . . . . . . . . . . . . . . . . . . . . . . . . . . . . . . . . . . . . . 2 . Striker 2 | . . . . . . . . . . . . . . . . . . . . . 1 . . . . . . . . . . . . . . . . . . 1 . Alpha 7 3 | . . . . . . . . . . . . . . . . . . . . . . . . . . . . . . . . . . . . 1 2 . . . . Fortress 1 | . . . . . . . . . . . . . . . . . . . . . . . . . . . . . . . . . . . . 1 . . . . . V-Series 2 | . . . . . . . . . . . . . . . . . . . . . . . . . . . . . . . . . . . . . 2 . . . . Zionite 1 | . . 1 . . . . . . . . . . . . . . . . . . . . . . . . . . . . . . . . . . . . . . . Z-Light 11 | . . . . . . . . . . . . . . . . . . 11 . . . . . . . . . . . . . . . . . . . . . . . Decomposer 2 | . . . . . . . . . . . . . . . . 2 . . . . . . . . . . . . . . . . . . . . . . . . . Packrat 1 | . . . . . . . . . . . . . . . 1 . . . . . . . . . . . . . . . . . . . . . . . . . . Tinkerer 1 | . . . . . . . . . . . . . . . . . . . . . . . . . . . . . . . . . . . . . 1 . . . . Master Thief 2 | . . . . . . . . . . . . . . . 2 . . . . . . . . . . . . . . . . . . . . . . . . . . Assembler 2 | . . . . . . . . . . . . . . . . . . 2 . . . . . . . . . . . . . . . . . . . . . . . Assembled 41 | . . . . . . . . . . . . . . . . . . 41 . . . . . . . . . . . . . . . . . . . . . . . Golem 2 | . . . . . . . . . . . . . . . . . . 2 . . . . . . . . . . . . . . . . . . . . . . . Wasp 1 | . . . . . . . . . . . . . . . . . . . . . . . . . . . . . . . . 1 . . . . . . . . . Thug 2 | . . . . . . . . . . . . . . . . . . . . . . . . . . . . . . . 1 1 . . . . . . . . . Savage 2 | . . . . . . . . . . . . . . . . . . . 2 . . . . . . . . . . . . . . . . . . . . . . Martyr 1 | . . . . . . . . . . . . . . . . . . . . . . . . . . . . . . . 1 . . . . . . . . . . Guerrilla 2 | . . . . . . . . 1 . . . . . . . . . . . . . . . . 1 . . . . . . . . . . . . . . . . Best Kill Streak 200 | 4 3 2 6 4 . 6 8 5 4 7 7 5 1 3 4 3 . 37 2 4 11 2 2 3 9 20 5 . 4 6 1 9 10 9 1 6 8 7 12 200 6 Combat Bots Only 181 | . 3 2 6 . . 6 5 5 3 7 6 4 1 2 4 3 . 35 2 4 11 2 2 . 2 10 5 . 3 5 1 3 10 6 1 5 7 2 5 181 6 Max Kills in Single Turn 200 | 1 2 2 3 1 . 3 3 3 2 4 2 2 1 1 4 1 . 32 2 1 4 1 1 1 8 2 4 . 2 2 1 3 3 3 1 2 2 1 2 200 2 Gunslinging 2 | . . . . . . . 1 1 . . 1 1 . . . . . . . . . . . . 1 . . . . . . . 2 1 . . . . . . . Exploded 181 | . 2 2 3 . . 3 3 3 . 4 2 . 1 . 4 . . 31 2 1 4 . . . 1 . 4 . . 1 . 2 . 1 . . . . . 181 . Melee 1 | . . . . . . . . . . . . . . . . . . . . . 1 . . . . . . . . 1 . . . . . . . . . . . Uniques/NPCs Destroyed 8 | . . . . . . . . . . . . . . . . . . 1 . . . . 2 . . . . . . . . . . . . . . . . 2 3 Z-Imprinter (-7/Deep Caves) Revision 17 (-6/Cetus) A7 (-6/Cetus) MAIN.C Shell (-1/Command) MAIN.C (-1/Command) A8 (-1/Access_0) A6 (-1/Access_0) A2 (-1/Access_0) Combat | -11 -10 -10 -9 -9 -9 -8 -8 -8 -8 -8 -8 -7 -7 -7 -7 -7 -7 -7 -6 -6 -6 -6 -6 -6 -6 -5 -5 -5 -5 -4 -4 -4 -4 -4 -3 -3 -3 -2 -1 -1 -1 -------- Run | Yrd Mat Min Mat Min Exi Min Mat Gar Mat Gar Mat Fac Was Fac Low Low Zio Dee Pro Fac Gar Ext Cet Arc Hub Fac Gar Fac DSF Fac Was Fac Gar Fac Res Qua Frg Res Acc Com Ac0 Hostile Shots Fired 2497 | . 16 5 45 . . 59 202 79 8 55 44 75 1 20 5 33 . 107 33 33 219 105 9 2 57 84 11 . 25 27 . 112 68 83 2 74 233 49 139 119 259 Missed 1002 | . 2 1 15 . . 15 57 31 4 15 11 28 . 8 1 15 . 27 10 10 63 27 1 2 27 14 5 . 4 10 . 39 20 28 2 24 102 35 82 77 190 Hits 1495 | . 14 4 30 . . 44 145 48 4 40 33 47 1 12 4 18 . 80 23 23 156 78 8 . 30 70 6 . 21 17 . 73 48 55 . 50 131 14 57 42 69 Melee 27 | . . . . . . 1 1 . . 1 1 . 1 . 3 5 . . . . 1 . . . . . . . . . . . . 3 . . 9 . . . 1 Projectile 1468 | . 14 4 30 . . 43 144 48 4 39 32 47 . 12 1 13 . 80 23 23 155 78 8 . 30 70 6 . 21 17 . 73 48 52 . 50 122 14 57 42 68 AOE 11 | . . . . . . . . . . 3 . . . . . . . . . . . 2 . . . 3 . . . . . . . . . . 1 . . 2 . Critical Strikes 81 | . . . 2 . . 3 5 2 . 2 2 2 1 . . . . . . . 3 1 . . . 6 . . . 2 . 14 2 4 . 3 19 . 2 1 5 Actively Blocked 42 | . . . . . . . . . . . . . . . . . . . . . . . . . . 1 . . . . . 11 . 2 . 3 19 . 1 1 4 Damage Taken 22911 | . 184 49 415 . . 853 2453 714 60 768 650 330 32 260 154 121 . 2732 203 349 2209 664 316 26 390 930 55 . 258 173 9 798 388 618 . 497 2055 425 844 1005 924 Core 2450 | . 26 27 127 . . 88 200 87 . 58 47 11 . 10 54 . . 382 15 33 108 46 44 . 89 129 . . 29 14 9 81 21 97 . 69 250 91 25 45 138 Absorbed by Shields 6029 | . . . . . . . . . . . . 155 . . . 78 . . . . . 28 15 . . 613 59 . 267 188 9 552 423 592 . 474 1213 46 51 585 681 Reduced by Siege Mode 241 | . . . . . . . . . . . . . . . . . . . . . 184 14 . . . 6 . . . 9 . . 8 17 . . 3 . . . . Redirected to Shielding 1594 | . . . . . . . . . . . . . . . . . . 275 . . . . . . . 124 . . . . . . . 33 . 61 343 270 141 181 166 Ignored by Resistances 4277 | . . . . . . . . . . . . . . . . 4 . . . . . 32 . . . 16 . . . 73 4 282 174 119 . 145 1390 25 424 1204 385 Regen/Repaired (Parts) 2431 | . . . . . . . . . . . . . . 329 . . . . . 345 . . 29 26 61 297 9 . 93 377 . 73 251 74 467 . . . . . . Core Remaining (%) 68 | 100 . 78 . . . 46 . . . . 28 . . . . . . . 32 . . . . . 62 . . . 84 . . . . 80 . . 75 93 . . 79 Volleys Fired 2235 | 11 11 8 27 . . 87 140 64 28 50 29 22 12 21 11 23 . 66 9 17 105 28 6 3 31 107 33 . 19 55 17 44 77 111 22 89 257 52 82 346 115 Largest 4 | 2 2 1 1 . . 2 4 4 4 4 4 4 3 1 2 2 . 2 2 3 3 4 3 3 4 4 2 . 4 4 4 4 4 4 4 1 1 1 1 1 4 Hottest 325 | 100 136 68 68 . . 88 128 101 102 110 116 97 110 50 100 100 . 100 50 130 185 273 240 240 325 325 130 . 203 203 140 140 140 225 225 120 140 140 140 140 140 Shots Fired 3698 | 22 15 8 27 . . 152 466 156 70 128 104 78 20 21 13 45 . 78 15 27 153 71 16 9 71 126 43 . 59 114 40 133 202 228 27 89 253 52 82 346 139 Gun 2690 | 22 5 . . . . 126 456 141 70 113 99 75 . . . . . 31 . 4 41 58 15 9 48 97 2 . 48 79 31 121 168 167 5 49 225 49 78 161 97 Cannon 846 | . 8 7 13 . . 16 . . . . . 3 14 21 11 45 . 42 13 19 104 13 . . 23 28 37 . 11 25 3 7 16 49 22 37 26 3 4 184 42 Launcher 103 | . 2 1 14 . . 10 10 15 . 15 5 . 6 . 2 . . 5 2 4 8 . . . . . 1 . . . . 2 . . . . . . . 1 . Special 59 | . . . . . . . . . . . . . . . . . . . . . . . 1 . . 1 3 . . 10 6 3 18 12 . 3 2 . . . . Kinetic 2645 | . . . . . . 106 435 141 70 113 99 78 14 21 11 45 . 53 . . . . . . . 76 31 . 56 79 31 121 168 167 5 49 199 49 78 231 119 Thermal 842 | 22 13 7 13 . . 36 17 . . . . . . . . . . 3 13 23 145 71 15 9 71 49 8 . 3 25 3 7 16 49 22 37 26 3 4 115 17 Explosive 85 | . 2 1 14 . . 10 4 4 . 15 5 . 6 . 2 . . 5 2 4 8 . . . . . 1 . . . . 2 . . . . . . . . . Electromagnetic 67 | . . . . . . . 10 11 . . . . . . . . . 17 . . . . . . . . . . . . . . . . . . 26 . . . 3 Robot Hit Streak 93 | 8 3 4 2 . . 9 24 11 7 12 11 20 9 3 3 6 . 15 7 16 20 13 15 3 13 15 12 . 15 23 21 13 45 23 20 23 24 27 22 93 34 Robot Miss Streak 8 | 1 4 2 1 . . 3 3 4 4 4 4 3 1 2 7 3 . 8 1 . 3 5 3 3 8 7 2 . 5 1 1 8 2 2 2 3 7 5 3 5 7 Penetration Max 2 | . . . . . . . 1 1 1 1 1 1 . . . . . . . . . . . . . . 1 . 1 2 . 2 2 2 . . 1 . . 1 1 Secondary Targets 37 | . . . . . . . 8 2 1 1 1 1 . . . . . . . . 3 1 . . 2 1 . . 2 1 1 2 7 3 . . . . . . . Max Gunslinging Chain 2 | . . . . . . . 1 1 1 1 1 1 . . . . . . . . 1 1 . . 2 1 . . 1 1 1 1 2 1 . . . . . . . Shots Hit Robots 2545 | 16 13 6 30 9 . 94 298 79 29 125 62 53 10 33 3 19 3 59 8 11 127 45 20 11 43 93 16 . 27 56 31 83 127 145 7 61 189 48 78 254 124 Core Hits 2145 | 7 7 6 29 1 . 56 126 53 14 62 36 27 4 19 12 8 . 136 7 17 112 40 14 9 55 121 14 . 21 38 6 61 56 79 5 61 192 54 83 375 122 Critical Kills 133 | . . . 2 1 . 1 2 . 1 . 2 . . . . . . . . . . . . . . . . . 8 9 4 15 23 22 2 . . . . 28 13 Critical Parts Destroyed 154 | . 2 . 3 1 . 3 2 . . 2 . 1 . . . . . . . . 1 . . . . . . . 7 22 3 12 12 29 . . . . . 45 9 Critical Strikes 368 | . 2 . 6 2 . 7 5 . 1 6 2 2 1 2 1 5 . 2 . . 6 . . . . . 4 . 16 34 11 28 37 52 2 . . . . 108 26 Burn 3 | . . . . . . 2 1 . . . . . . . . . . . . . . . . . . . . . . . . . . . . . . . . . . Meltdown 5 | . . . . . . . . . . . . . . . . . . . . . . . . . . . . . . . . . . . . . . . . 5 . Destroy 323 | . . . . . . 5 3 . 1 2 2 2 . . . . . . . . 1 . . . . . . . 15 33 11 28 37 52 2 . . . . 103 26 Blast 14 | . . . . . . . . . . . . . 1 1 1 5 . 2 . . . . . . . . 3 . 1 . . . . . . . . . . . . Smash 11 | . 2 . 6 2 . . 1 . . . . . . . . . . . . . . . . . . . . . . . . . . . . . . . . . . Sever 5 | . . . . . . . . . . 4 . . . 1 . . . . . . . . . . . . . . . . . . . . . . . . . . . Impale 7 | . . . . . . . . . . . . . . . . . . . . . 5 . . . . . 1 . . 1 . . . . . . . . . . . Melee Attacks 352 | . 11 2 37 11 . 1 34 32 . 95 . 2 . 55 1 . 4 4 . 1 41 . 6 6 . 1 1 . . 3 . . . . . 4 . . . . . Kinetic 4 | . . . . . . . . . . . . . . . . . . . . . . . . . . . . . . . . . . . . 4 . . . . . Impact 121 | . 11 1 37 11 . 1 25 31 . . . . . . . . . 4 . . . . . . . . . . . . . . . . . . . . . . . Slashing 150 | . . . . . . . 9 1 . 73 . . . 55 1 . 1 . . . . . 6 4 . . . . . . . . . . . . . . . . . Piercing 46 | . . . . . . . . . . . . . . . . . . . . 1 41 . . . . . 1 . . 3 . . . . . . . . . . . Sneak Attacks 85 | . . 1 13 5 . 1 5 . . 22 . 2 . 20 . . 3 . . . . . 6 5 . 1 1 . . . . . . . . . . . . . . Combat Hostiles . | . . . . . . . . . . . . . . . . . . . . . . . . . . . . . . . . . . . . . . . . . . Follow-up Attacks 9 | . . . . . . . . . . 9 . . . . . . . . . . . . . . . . . . . . . . . . . . . . . . . Damage Inflicted 353246 | 200 587 213 2693 529 . 2021 6487 2154 585 3811 1943 918 1474 2328 646 875 . 5002 542 1056 6895 1292 606 397 2528 5041 1518 . 657 2688 204 1390 912 1788 234 3408 15859 3225 5674 258246 6620 Guns 73140 | 200 49 . . . . 1020 4796 1261 585 1044 1300 918 . . . . . 1414 . 12 807 1021 302 123 950 4880 140 . 255 631 204 670 912 1229 18 2831 14579 3225 5674 16783 5307 Cannons 15958 | . 42 124 83 . . 165 . . . . . . 426 387 194 875 . 905 343 470 2411 271 . . 288 161 999 . 402 66 . . . 278 216 435 1211 . . 3893 1313 Explosions 254736 | . 192 88 1010 . . 780 1183 893 . 1347 643 . 1048 . 452 . . 2469 199 574 1676 . . . 1290 . 316 . . 1936 . 720 . 281 . . 69 . . 237570 . Melee 9404 | . 297 . 1600 529 . 56 508 . . 1420 . . . 1941 . . . 214 . . 2001 . 304 274 . . 63 . . 55 . . . . . 142 . . . . . Ramming 8 | . 7 1 . . . . . . . . . . . . . . . . . . . . . . . . . . . . . . . . . . . . . . . Kinetic 73510 | . . . . . . 779 4600 1261 585 1044 1300 918 426 387 194 875 . 1995 . . . . . . . 4545 1139 . 657 631 204 670 912 1229 18 2973 14169 3225 5674 17527 5573 Thermal 254514 | 200 91 124 83 . . 406 242 . . . . . . . . . . . 343 482 3218 1292 302 123 1238 496 . . . 2002 . . . 278 216 435 1280 . . 240719 944 Explosive 12920 | . 192 88 1010 . . 780 599 572 . 1347 643 . 1048 . 452 . . 2469 199 574 1676 . . . . . 316 . . . . 674 . 281 . . . . . . . Electromagnetic 3032 | . . . . . . . 538 321 . . . . . . . . . 324 . . . . . . 1290 . . . . . . 46 . . . . 410 . . . 103 Impact 3127 | . 297 . 1600 529 . 56 431 . . . . . . . . . . 214 . . . . . . . . . . . . . . . . . . . . . . . Slashing 4016 | . . . . . . . 77 . . 1420 . . . 1941 . . . . . . . . 304 274 . . . . . . . . . . . . . . . . . Piercing 2119 | . . . . . . . . . . . . . . . . . . . . . 2001 . . . . . 63 . . 55 . . . . . . . . . . . Highest Corruption 25 | . . . . . . . 3 . . 3 3 . . 1 . . . 1 1 . 5 6 6 6 1 4 4 4 4 . 13 13 1 10 . 1 25 . . 1 . Average Corruption 4 | . . . . . . . 2 . . 2 3 . . 1 . . . 1 1 . 5 5 6 5 1 2 4 4 4 . 10 8 1 4 . 1 14 . . 1 . Corruption Purged 27 | . . . . . . . 3 . . . . . . 1 . . . . . . . . . 6 . . . . . . . 5 . 11 . . . . . 1 . Corruption Blocked . | . . . . . . . . . . . . . . . . . . . . . . . . . . . . . . . . . . . . . . . . . . Effects 366 | . . . . . . . 4 . . 25 15 . . 1 . . . 3 14 . 42 32 15 2 . 19 19 . 9 . 15 19 5 35 . 7 85 . . . . Message Errors 93 | . . . . . . . 1 . . 8 2 . . . . . . 1 4 . 10 10 5 1 . 3 5 . 3 . 5 6 1 12 . 1 15 . . . . Matter Fused 86 | . . . . . . . 2 . . 7 5 . . . . . . . 4 . 9 7 4 . . 6 4 . 4 . 2 4 . 10 . 1 17 . . . . Heat Flow Errors 36 | . . . . . . . 1 . . . 1 . . . . . . . 2 . 6 2 3 . . 2 2 . . . 1 2 1 1 . 1 11 . . . . Energy Discharges 47 | . . . . . . . . . . 2 3 . . . . . . 1 . . 7 6 . 1 . 3 6 . 1 . 1 2 1 3 . . 10 . . . . Parts Rejected 3 | . . . . . . . . . . . . . . . . . . . . . . 1 . . . . . . . . . . . . . . 2 . . . . Parts Fused 6 | . . . . . . . . . . . 1 . . . . . . . . . . 1 . . . . 1 . . . . . . 2 . . 1 . . . . Data Loss (minor) 46 | . . . . . . . . . . 4 1 . . 1 . . . 1 2 . 4 1 3 . . 4 . . . . 3 2 . 4 . 2 14 . . . . Data Loss (major) 14 | . . . . . . . . . . 3 . . . . . . . . 2 . 1 1 . . . . 1 . 1 . 1 . 1 . . 2 1 . . . . Misfires 11 | . . . . . . . . . . . 1 . . . . . . . . . 3 1 . . . 1 . . . . 1 1 . 1 . . 2 . . . . Alerts 7 | . . . . . . . . . . . . . . . . . . . . . . 1 . . . . . . . . . . . 1 . . 5 . . . . Misdirections 2 | . . . . . . . . . . . . . . . . . . . . . . . . . . . . . . . 1 . . . . . 1 . . . . Weapon Failures 15 | . . . . . . . . . . 1 1 . . . . . . . . . 2 1 . . . . . . . . . 2 1 1 . . 6 . . . . Overload Shots . | . . . . . . . . . . . . . . . . . . . . . . . . . . . . . . . . . . . . . . . . . . Overflow Damage 30886 | . 124 . 449 212 . 34 377 31 . 74 44 . . 321 3 100 . 199 . 40 37 9 23 69 19 . 94 . 29 453 . 4 . 39 6 63 30 . . 27937 66 Projectiles 916 | . . . . 34 . . . . . . . . . 41 . 100 . 39 . 40 27 9 . . . . 94 . 29 . . . . 14 6 52 30 . . 335 66 Explosions 28389 | . 11 . . . . . 42 31 . 74 44 . . . 3 . . 81 . . . . . . 19 . . . . 453 . 4 . 25 . . . . . 27602 . Melee 1581 | . 113 . 449 178 . 34 335 . . . . . . 280 . . . 79 . . 10 . 23 69 . . . . . . . . . . . 11 . . . . . Knockbacks 42 | . 1 . 3 5 . 1 3 . . . . . . 1 1 4 . 4 . . . . . . . . 7 . 1 . . . . . . . . . . 1 10 Impact 11 | . 1 . 3 4 . . 3 . . . . . . . . . . . . . . . . . . . . . . . . . . . . . . . . . . Kinetic 28 | . . . . . . 1 . . . . . . . 1 1 3 . 4 . . . . . . . . 6 . 1 . . . . . . . . . . 1 10 Secondary 3 | . . . . 1 . . . . . . . . . . . 1 . . . . . . . . . . 1 . . . . . . . . . . . . . . Self-Inflicted Damage 1364 | . 19 . 11 . . 178 14 30 . 107 90 . . . 130 . . 56 . 7 24 . . . 99 . . . . 51 . 40 . . . . . . . 508 . Shots 32 | . 1 . 1 . . 5 2 3 . 2 3 . . . 5 . . 2 . 1 1 . . . 1 . . . . 1 . 3 . . . . . . . 1 . Rammed 4 | . 2 2 . . . . . . . . . . . . . . . . . . . . . . . . . . . . . . . . . . . . . . . Targets Rammed 4 | . 2 2 . . . . . . . . . . . . . . . . . . . . . . . . . . . . . . . . . . . . . . . Kicked . | . . . . . . . . . . . . . . . . . . . . . . . . . . . . . . . . . . . . . . . . . . Crushed . | . . . . . . . . . . . . . . . . . . . . . . . . . . . . . . . . . . . . . . . . . . Highest Temperature 375 | 168 180 56 228 . . 321 275 159 112 128 198 208 6 21 12 119 . 245 258 14 236 336 119 109 224 249 222 . 40 310 338 375 321 212 126 195 254 238 235 268 185 Average Temperature 65 | 80 67 26 59 . . 74 57 47 42 46 72 62 4 11 6 33 . 76 88 8 50 77 40 61 111 47 73 . 23 88 86 97 91 60 41 48 42 72 90 53 62 Received Heat Transfer 4712 | . 84 12 162 . . 360 612 234 27 225 297 147 . 27 . 60 . 612 54 129 567 118 18 . 66 144 16 . 4 53 4 106 49 67 . 49 224 . 81 71 33 Effects 8 | . . . . . . . 3 . . . . . . . . . . . . . . 1 . . . . . . . . . 3 1 . . . . . . . . Energy Bleed 2 | . . . . . . . . . . . . . . . . . . . . . . 1 . . . . . . . . . . 1 . . . . . . . . Interference 3 | . . . . . . . 3 . . . . . . . . . . . . . . . . . . . . . . . . . . . . . . . . . . Short Circuit 2 | . . . . . . . . . . . . . . . . . . . . . . . . . . . . . . . . 2 . . . . . . . . . Damage (minor) 1 | . . . . . . . . . . . . . . . . . . . . . . . . . . . . . . . . 1 . . . . . . . . . Siege Activations 42 | . . . . . . . . . . . . . . . . . . . . . 1 2 . . . 9 3 . 1 5 . 4 5 7 . 4 1 . . . . Total Turns 515 | . . . . . . . . . . . . . . . . . . . . . 43 33 . . . 78 86 . 5 53 . 20 90 57 . 32 18 . . . . Longest Duration 54 | . . . . . . . . . . . . . . . . . . . . . 43 18 . . . 22 38 . 5 39 . 11 54 23 . 25 18 . . . . Martial Activations . | . . . . . . . . . . . . . . . . . . . . . . . . . . . . . . . . . . . . . . . . . . Shielding Activations . | . . . . . . . . . . . . . . . . . . . . . . . . . . . . . . . . . . . . . . . . . . Robots Disrupted . | . . . . . . . . . . . . . . . . . . . . . . . . . . . . . . . . . . . . . . . . . . Combat Hostiles . | . . . . . . . . . . . . . . . . . . . . . . . . . . . . . . . . . . . . . . . . . . Robots Corrupted 30 | . 3 . 7 5 . 1 4 2 . . . . . . . . . 3 . . . . . . 2 . . . . . . . . . . . 2 . . . 1 Combat Hostiles 14 | . 3 . 1 . . . 1 2 . . . . . . . . . 3 . . . . . . 1 . . . . . . . . . . . 2 . . . 1 Parts Fried 54 | . 3 . 13 6 . 4 5 4 . . . . . . . . . 1 . . . . . . 8 . . . . . . . . . . . 5 . . . 5 Impact Corruptions 44 | . 5 . 16 9 . 1 8 . . . . . . . . . . 5 . . . . . . . . . . . . . . . . . . . . . . . Robots Melted 8 | . . . . . . . . . . . . . . . . . . . . . 1 1 . . . . . . . 1 . . . . . . . . . 5 . Combat Hostiles 8 | . . . . . . . . . . . . . . . . . . . . . 1 1 . . . . . . . 1 . . . . . . . . . 5 . Parts Melted 41 | 1 . . . . . 6 1 . 1 . . . . . . . . . 2 . 5 3 1 . 6 3 . . . 1 . . . . 2 . . . . 9 . Heat Transferred 19154 | 592 222 222 148 . . 1184 521 . . . . . . . . . . . 200 275 3049 2386 687 275 2458 885 . . . 1150 . . . 222 185 370 800 . . 2887 436 Parts Sabotaged . | . . . . . . . . . . . . . . . . . . . . . . . . . . . . . . . . . . . . . . . . . . Parts Stolen 6 | . . . . . . . . . . . . . . . 2 4 . . . . . . . . . . . . . . . . . . . . . . . . . Parts Stripped 18 | . . . . . . . . . . . . . . . . . . . . . . . . . . . . . . . . . . . . 18 . . . . . Power Chain Reactions 4 | . . . . . . . 2 . . . . . . . . . . . . . . . . . . . . . . . . 1 . . . . 1 . . . . Alert | -11 -10 -10 -9 -9 -9 -8 -8 -8 -8 -8 -8 -7 -7 -7 -7 -7 -7 -7 -6 -6 -6 -6 -6 -6 -6 -5 -5 -5 -5 -4 -4 -4 -4 -4 -3 -3 -3 -2 -1 -1 -1 ------- Run | Yrd Mat Min Mat Min Exi Min Mat Gar Mat Gar Mat Fac Was Fac Low Low Zio Dee Pro Fac Gar Ext Cet Arc Hub Fac Gar Fac DSF Fac Was Fac Gar Fac Res Qua Frg Res Acc Com Ac0 Maximum Alert Level 5 | . . . 2 . . 1 3 5 3 5 4 2 . . . . . . . . 3 4 3 2 3 4 5 3 4 3 1 2 5 3 1 . 4 3 3 5 . Low Security (%) 35 | 100 100 100 84 100 . 96 69 . . . . . 100 100 . . . . . 100 12 . . . 51 . . . . . 46 80 . . 4 100 23 . . . . Level 1 6 | . . . 9 . . 3 6 . . . . . . . . . . . . . 5 26 . 49 8 . . . . 10 53 10 5 . 95 . 18 . . . . Level 2 18 | . . . 6 . . . 14 7 . 5 . 100 . . . . . . . . 25 42 52 50 39 54 . . . 79 . 8 16 68 . . 17 . 9 1 . Level 3 19 | . . . . . . . 8 37 100 21 54 . . . . . . . . . 56 20 47 . . 16 10 100 92 10 . . 43 31 . . 34 100 90 9 . Level 4 7 | . . . . . . . . 34 . 53 45 . . . . . . . . . . 10 . . . 29 35 . 7 . . . 9 . . . 6 . . . . Level 5 12 | . . . . . . . . 21 . 19 . . . . . . . . . . . . . . . . 53 . . . . . 24 . . . . . . 89 . High Security . | . . . . . . . . . . . . . . . . . . . . . . . . . . . . . . . . . . . . . . . . . . Max Security . | . . . . . . . . . . . . . . . . . . . . . . . . . . . . . . . . . . . . . . . . . . Sterilizations 1 | . . . . . . . . . . . . . . . . . . . . . . . . . . . . . 1 . . . . . . . . . . . . Peak Influence 2035 | 15 127 91 500 198 . 221 948 2035 1084 1965 1228 562 151 60 . . . . . 116 1016 1257 767 470 1058 1383 1915 1005 1110 889 312 525 1805 1041 344 198 1345 1025 1021 794 . Initial 1005 | . 3 39 24 188 . . 21 616 991 628 957 510 147 49 . . . . . . 31 533 699 274 115 518 975 1005 703 582 304 63 360 947 344 107 48 755 614 640 . Average 520 | 3 32 22 114 162 . 53 200 1236 1024 1278 1080 501 109 14 . . . . . 46 657 603 698 395 266 787 1581 1005 849 533 208 155 1017 650 268 112 565 883 800 740 . Influence Increases 36295 | 30 207 213 723 30 . 611 1636 1469 242 1387 773 270 24 376 120 145 . . 110 297 1095 1570 348 226 1449 1445 940 . 427 811 34 1078 1565 1532 141 656 1916 460 677 10878 384 Destroy 0b10 Robot/C 16880 | . 120 120 340 . . 380 960 580 140 660 440 180 . 80 100 120 . . 100 180 640 640 160 80 380 840 400 . 280 280 20 400 820 680 40 340 1260 220 420 4480 . Destroy 0b10 Robot/NC 1290 | 30 20 15 80 30 . 75 110 . 30 25 25 15 . 95 . 5 . . . . 50 35 10 15 100 60 . . 5 25 . 45 5 65 15 45 60 30 30 140 . Destroy Leader 2002 | . 24 20 62 . . 50 214 20 36 20 76 40 . 30 20 20 . . 10 40 40 82 . . 104 176 20 . 50 60 . 104 50 142 20 44 120 80 104 124 . Allied During Kill 2312 | . . 26 . . . . . 50 21 51 70 . . . . . . . . . 15 692 153 95 227 15 127 . 63 25 2 204 382 94 . . . . . . . Trap Triggered on 0b10 20 | . . . . . . . . . . . . . . 20 . . . . . . . . . . . . . . . . . . . . . . . . . . . Successful Hack 853 | . . 7 24 . . . 51 . 12 28 9 14 . 69 . . . . . 52 . 15 . . 27 57 10 . . 99 . 26 . 105 40 89 16 28 75 . . Select Force Hacks 30 | . . . . . . . . . . . . . . . . . . . . . . . . . . 30 . . . . . . . . . . . . . . . Disable Machine 2520 | . 15 . 75 . . 15 120 75 . 30 30 15 . 30 . . . . . . . 60 . 30 390 60 45 . 15 180 . 225 . 195 . 75 240 15 15 555 15 Anti-Garrison Action 1550 | . . . . . . . . 550 . 400 . . . . . . . . . . 250 . . . . . 150 . . . . . 150 . . . . . . 50 . Destroy Structure 8088 | . 13 10 82 . . 76 76 164 3 173 78 6 24 37 . . . . . 25 100 31 25 6 221 162 188 . 14 142 12 74 128 236 26 48 130 42 18 5349 369 Partial Spotted 120 | . . . . . . . . . . . . . . 15 . . . . . . . . . . . . . . . . . . . . . . 60 30 15 . . Lose Combat Pursuer 630 | . 15 15 60 . . 15 105 30 . . 45 . . . . . . . . . . 15 . . . 45 . . . . . . 30 15 . 15 30 15 . 180 . Influence Decreases 35931 | 25 111 250 303 386 128 555 744 382 1310 389 1616 972 373 447 120 145 . . 110 252 124 1337 912 581 721 1110 418 910 322 1050 815 653 275 2680 607 760 660 778 701 627 11272 Entered New Map 23219 | . 2 62 40 296 128 . 35 332 1044 339 1008 612 273 22 . . . . . . 14 483 550 411 215 540 418 910 302 528 567 27 155 858 313 84 39 588 411 361 11252 Time Decay 9122 | 25 109 188 233 90 . 475 419 . 206 . 428 350 90 415 120 145 . . 110 252 . 474 222 170 326 510 . . . 482 198 386 . 632 294 526 591 180 270 206 . Lost Part 621 | . . . 10 . . 80 101 30 . 30 80 . 10 10 . . . . . . 50 . . . 10 40 . . . . . . . 30 . . 30 10 20 60 20 Lost Ally 1130 | . . . 20 . . . . 20 60 20 100 10 . . . . . . . . 60 80 140 . 20 20 . . 20 40 50 240 120 110 . . . . . . . Purge Threat 1839 | . . . . . . . 189 . . . . . . . . . . . . . . 300 . . 150 . . . . . . . . 1050 . 150 . . . . . Squads Dispatched 90 | . . . . . . 2 13 . 2 . 7 4 . 6 . . . . . 2 . 6 . . 3 12 . . 1 3 . 4 . 7 1 4 6 3 3 1 . Investigation 16 | . . . . . . . 2 . . . 1 2 . 2 . . . . . . . 5 . . . 3 . . . . . . . 1 . . . . . . . Extermination 30 | . . . . . . . . . . . . 1 . 4 . . . . . 1 . . . . 1 4 . . . 1 . 2 . 4 1 4 4 1 2 . . Reinforcement 25 | . . . . . . 2 6 . 2 . 2 1 . . . . . . . 1 . . . . 1 3 . . 1 . . 2 . 1 . . . 2 1 . . Assault 11 | . . . . . . . 2 . . . 1 . . . . . . . . . . 1 . . . 2 . . . 2 . . . 1 . . 1 . . 1 . Garrison 8 | . . . . . . . 3 . . . 3 . . . . . . . . . . . . . 1 . . . . . . . . . . . 1 . . . . Intercept . | . . . . . . . . . . . . . . . . . . . . . . . . . . . . . . . . . . . . . . . . . . Searches Triggered . | . . . . . . . . . . . . . . . . . . . . . . . . . . . . . . . . . . . . . . . . . . Unchained Authorized 4 | . . . . . . . . . . . . . . . . . . . . . . . . . . . . . . 1 . 1 . . . . . 1 1 . . Construction Impeded 5 | . . . . . . 2 1 . . . . . . . . . . . . . . . . . 1 1 . . . . . . . . . . . . . . . Haulers Reinforced . | . . . . . . . . . . . . . . . . . . . . . . . . . . . . . . . . . . . . . . . . . . Active Scanning Responses . | . . . . . . . . . . . . . . . . . . . . . . . . . . . . . . . . . . . . . . . . . . Cargo Convoy Interrupts . | . . . . . . . . . . . . . . . . . . . . . . . . . . . . . . . . . . . . . . . . . . Stealth | -11 -10 -10 -9 -9 -9 -8 -8 -8 -8 -8 -8 -7 -7 -7 -7 -7 -7 -7 -6 -6 -6 -6 -6 -6 -6 -5 -5 -5 -5 -4 -4 -4 -4 -4 -3 -3 -3 -2 -1 -1 -1 --------- Run | Yrd Mat Min Mat Min Exi Min Mat Gar Mat Gar Mat Fac Was Fac Low Low Zio Dee Pro Fac Gar Ext Cet Arc Hub Fac Gar Fac DSF Fac Was Fac Gar Fac Res Qua Frg Res Acc Com Ac0 Distress Signals 32 | . . . . . . . 4 . 1 . 2 . . . . . . . . . . 3 2 . 1 5 . . . 2 . 1 . 2 . . . 2 . 7 . Communications Jammed 123 | . . . . . . . . . . . . . . . . . . . . . . . . . . . . . . 10 . 6 . 94 1 2 . 6 4 . . Distress Signals 116 | . . . . . . . . . . . . . . . . . . . . . . . . . . . . . . 10 . 3 . 94 . 2 . 5 2 . . Times Spotted 881 | . 9 6 32 6 . 19 74 30 9 28 22 10 7 12 7 10 . 53 6 11 31 30 11 6 14 57 11 . 9 20 3 25 42 55 2 20 65 20 46 35 28 Peak Tracking Total 37 | . 3 3 9 3 . 4 8 3 3 6 5 4 6 3 4 4 . 37 3 4 7 8 5 1 5 6 4 . 4 4 2 5 5 6 1 2 4 3 5 15 8 Tactical Retreats 30 | . 1 1 3 2 . 1 5 1 . . 1 . 2 . . . . . . . . 1 . . . 2 . . . . . . 1 1 . 1 2 1 1 3 . Traps | -11 -10 -10 -9 -9 -9 -8 -8 -8 -8 -8 -8 -7 -7 -7 -7 -7 -7 -7 -6 -6 -6 -6 -6 -6 -6 -5 -5 -5 -5 -4 -4 -4 -4 -4 -3 -3 -3 -2 -1 -1 -1 ------- Run | Yrd Mat Min Mat Min Exi Min Mat Gar Mat Gar Mat Fac Was Fac Low Low Zio Dee Pro Fac Gar Ext Cet Arc Hub Fac Gar Fac DSF Fac Was Fac Gar Fac Res Qua Frg Res Acc Com Ac0 Traps Triggered 54 | . . . . . . . 1 8 . 5 . 2 . 2 . . . . . . 6 2 . . . . . . 3 1 . 3 2 2 . . 12 . 2 3 . Indirectly 1 | . . . . . . . . . . . . . . . . . . . . . . . . . . . . . . . . 1 . . . . . . . . . Trap Hack Attempts 82 | . . 33 . . . . . . . . . . . 49 . . . . . . . . . . . . . . . . . . . . . . . . . . . Triggered . | . . . . . . . . . . . . . . . . . . . . . . . . . . . . . . . . . . . . . . . . . . Disarmed 1 | . . 1 . . . . . . . . . . . . . . . . . . . . . . . . . . . . . . . . . . . . . . . Reprogrammed 10 | . . 3 . . . . . . . . . . . 6 . . . . . . . 1 . . . . . . . . . . . . . . . . . . . Reused 4 | . . . . . . . . . . . . . . 2 . . . 2 . . . . . . . . . . . . . . . . . . . . . . . Traps Extracted 10 | . . 2 . . . . . . . . . . . . . 7 . 1 . . . . . . . . . . . . . . . . . . . . . . . Installed 10 | . . . . . . . . . . . . . . . . 6 . 4 . . . . . . . . . . . . . . . . . . . . . . . Triggered 2 | . . . . . . . . . . . . . . 2 . . . . . . . . . . . . . . . . . . . . . . . . . . . Most Traps Carried 6 | . . 2 . . . . . . . . . . . . . 6 6 6 . . . . . . . . . . . . . . . . . . . . . . . Machines | -11 -10 -10 -9 -9 -9 -8 -8 -8 -8 -8 -8 -7 -7 -7 -7 -7 -7 -7 -6 -6 -6 -6 -6 -6 -6 -5 -5 -5 -5 -4 -4 -4 -4 -4 -3 -3 -3 -2 -1 -1 -1 ---------- Run | Yrd Mat Min Mat Min Exi Min Mat Gar Mat Gar Mat Fac Was Fac Low Low Zio Dee Pro Fac Gar Ext Cet Arc Hub Fac Gar Fac DSF Fac Was Fac Gar Fac Res Qua Frg Res Acc Com Ac0 Machines Disabled 217 | . 1 . 5 . . 1 8 14 . 8 2 1 . 2 . . 3 2 . . 3 4 . 2 26 4 8 . 1 12 . 15 5 13 1 5 27 1 1 41 1 Max in Single Turn 21 | . 1 . 1 . . 1 1 1 . 2 . 1 . 1 . . 1 1 . . 1 1 . . 21 2 2 . . 5 . 8 2 3 1 1 2 1 1 4 1 Garrison Access 15 | . . . . . . . . . . . . . . . . . . . . . . . . . 1 . . . . 2 . 1 . 3 1 1 1 2 3 . . Garrison Relay 16 | . . . . . . . . 5 . 4 . . . . . . . . . . 3 . . . . . 2 . . . . . 2 . . . . . . . . Phase Generator 5 | . . . . . . . . 1 . 1 . . . . . . . . . . . . . . . . 1 . . . . . 1 . . . . . . 1 . Network Hub 2 | . . . . . . . . . . . . . . . . . . . . . . . . . 2 . . . . . . . . . . . . . . . . Energy Cycler 1 | . . . . . . . . . . . . . . . . . . . . . . 1 . . . . . . . . . . . . . . . . . . . Machines Repaired . | . . . . . . . . . . . . . . . . . . . . . . . . . . . . . . . . . . . . . . . . . . Machines Dismantled 6 | . . . . . . . 3 . . . . . . . . . 3 . . . . . . . . . . . . . . . . . . . . . . . . Machines Sabotaged . | . . . . . . . . . . . . . . . . . . . . . . . . . . . . . . . . . . . . . . . . . . Overloaded Fab Kills . | . . . . . . . . . . . . . . . . . . . . . . . . . . . . . . . . . . . . . . . . . . Hacking | -11 -10 -10 -9 -9 -9 -8 -8 -8 -8 -8 -8 -7 -7 -7 -7 -7 -7 -7 -6 -6 -6 -6 -6 -6 -6 -5 -5 -5 -5 -4 -4 -4 -4 -4 -3 -3 -3 -2 -1 -1 -1 --------- Run | Yrd Mat Min Mat Min Exi Min Mat Gar Mat Gar Mat Fac Was Fac Low Low Zio Dee Pro Fac Gar Ext Cet Arc Hub Fac Gar Fac DSF Fac Was Fac Gar Fac Res Qua Frg Res Acc Com Ac0 Machines Accessed 184 | . 2 2 7 . 2 . 13 2 3 3 5 6 . 18 2 . . . . 7 1 11 1 . 10 9 2 1 . 9 . 6 3 16 6 11 6 8 9 1 2 Terminals 106 | . 2 1 4 . . . 9 2 2 3 3 3 . 10 . . . . . 4 1 10 1 . 9 2 2 1 . 1 . 2 3 5 2 8 4 5 6 1 . Fabricators 12 | . . . . . . . . . . . . . . 4 . . . . . . . . . . . 2 . . . 1 . . . 4 . . . 1 . . . Repair Stations 9 | . . . 2 . . . . . . . . . . 1 . . . . . 1 . . . . . 1 . . . 1 . 1 . . 2 . . . . . . Recycling Units 11 | . . . 1 . . . 2 . . . . 1 . . . . . . . . . 1 . . . 3 . . . 2 . . . 1 . . . . . . . Scanalyzers 15 | . . . . . . . 1 . . . 1 1 . 2 . . . . . . . . . . . . . . . 2 . 1 . 3 1 2 1 . . . . Garrison Access 24 | . . . . . . . 1 . 1 . 1 1 . 1 . . . . . 2 . . . . 1 1 . . . 2 . 2 . 3 1 1 1 2 3 . . Total Hacks 568 | . 5 4 19 . 2 . 37 4 9 10 14 16 . 48 6 . . . . 18 1 23 2 . 29 52 10 1 . 41 . 19 9 68 16 34 8 18 23 1 21 Successful 297 | . 1 2 6 . 2 . 23 3 5 3 5 9 . 26 6 . . . . 9 1 8 . . 16 24 3 1 . 23 . 7 3 42 9 16 5 7 10 1 21 Failed 266 | . 3 2 13 . . . 13 1 4 7 9 6 . 21 . . . . . 9 . 15 2 . 13 28 7 . . 17 . 12 6 26 7 18 3 11 13 . . Catastrophic 54 | . 1 1 2 . . . 3 . . 3 2 2 . 2 . . . . . 1 . 2 . . 4 1 2 . . 2 . 2 2 4 1 5 2 5 5 . . Database Lockouts 5 | . 1 . . . . . 1 . . . . 1 . 1 . . . . . . . . . . . . . . . 1 . . . . . . . . . . . Manual 237 | . 5 3 11 . 1 . 12 1 6 6 4 4 . 11 . . . . . 10 . 8 1 . 22 27 7 . . 12 . 5 3 35 2 22 4 5 10 . . Terminals 294 | . 5 3 12 . . . 23 4 8 10 8 6 . 24 . . . . . 12 1 22 2 . 27 8 10 1 . 3 . 9 9 24 4 25 5 11 17 1 . Fabricators 54 | . . . . . . . . . . . . . . 10 . . . . . . . . . . . 14 . . . 5 . . . 22 . . . 3 . . . Repair Stations 35 | . . . 5 . . . . . . . . . . 6 . . . . . 2 . . . . . 4 . . . 7 . 2 . . 9 . . . . . . Recycling Units 47 | . . . 2 . . . 3 . . . . 3 . . . . . . . . . 1 . . . 22 . . . 10 . . . 6 . . . . . . . Scanalyzers 61 | . . . . . . . 10 . . . 3 6 . 6 . . . . . . . . . . . . . . . 12 . 4 . 10 2 7 1 . . . . Garrison Access 47 | . . . . . . . 1 . 1 . 3 1 . 2 . . . . . 4 . . . . 2 4 . . . 4 . 4 . 6 1 2 2 4 6 . . Terminal Hacks 102 | . 1 2 1 . 2 . 6 2 2 1 1 1 . 7 6 . . . . 4 1 8 . . 7 3 2 1 . . . . 2 7 1 7 2 1 2 1 21 Record 24 | . . . . . 1 . . . . . . . . . 5 . . . . . . . . . . . . . . . . . . . . . 1 . . . 17 Part Schematic 3 | . . . 1 . . . . . . . . . . . . . . . . 2 . . . . . . . . . . . . . . . . . . . . . Robot Schematic 1 | . . 1 . . . . . . . . . . . . . . . . . . . . . . . . . . . . . . . . . . . . . . . Robot Analysis 2 | . 1 . . . . . . . . . . . . . . . . . . . . . . . . . . . . . . . . . . 1 . . . . . Open Door 12 | . . 1 . . . . . 1 . . . . . . 1 . . . . . 1 4 . . . . . . . . . . 1 . 1 1 . . . 1 . Open DSF 1 | . . . . . . . . . . . . . . . . . . . . . . . . . . . . 1 . . . . . . . . . . . . . Level Access Points 2 | . . . . . . . . . . . . . . . . . . . . . . . . . 1 . . . . . . . . 1 . . . . . . . Branch Access Points 7 | . . . . . . . 1 . . . . 1 . 1 . . . . . 1 . . . . . 1 . . . . . . . 1 . . . . 1 . . Emergency Access Points 2 | . . . . . . . . 1 . . . . . . . . . . . . . . . . 1 . . . . . . . . . . . . . . . . Terminal Index 2 | . . . . . . . . . . . . . . 1 . . . . . . . . . . . . . . . . . . . . . . . 1 . . . Garrison Index 1 | . . . . . . . . . . . . . . . . . . . . . . . . . . . . . . . . . . . . . . . 1 . . Unreport Threat 10 | . . . . . . . 2 . . . . . . . . . . . . . . 2 . . 1 . . . . . . . . 4 . 1 . . . . . Locate Traps 6 | . . . . . . . 1 . . . . . . 2 . . . . . . . . . . . . . . . . . . . 1 . 2 . . . . . Reprogram Traps 1 | . . . . . . . . . . . . . . . . . . . . . . 1 . . . . . . . . . . . . . . . . . . . Maintenance Status 1 | . . . . . . . . . . . . . . . . . . . . . . . . . . . . . . . . . . . . 1 . . . . . Patrol Status 1 | . . . . . . . . . . . . . . 1 . . . . . . . . . . . . . . . . . . . . . . . . . . . Transport Status 1 | . . . . . . . 1 . . . . . . . . . . . . . . . . . . . . . . . . . . . . . . . . . . Recall Investigation 2 | . . . . . . . . . . . . . . 1 . . . . . . . 1 . . . . . . . . . . . . . . . . . . . Recall Extermination 1 | . . . . . . . . . . . . . . . . . . . . . . . . . . 1 . . . . . . . . . . . . . . . Recall Reinforcements 1 | . . . . . . . . . . . . . . . . . . . . 1 . . . . . . . . . . . . . . . . . . . . . Hauler Manifests 6 | . . . . . . . 1 . 1 . 1 . . 1 . . . . . . . . . . . 1 . . . . . . . . . 1 . . . . . Zone Layout 5 | . . . . . . . . . 1 . . . . . . . . . . . . . . . 4 . . . . . . . . . . . . . . . . Garrison Registry 3 | . . . . . . . . . . 1 . . . . . . . . . . . . . . . . 1 . . . . . 1 . . . . . . . . Patrol Navigation 1 | . . . . . . . . . . . . . . . . . . . . . . . . . . . 1 . . . . . . . . . . . . . . Proto ID Catalog 2 | . . . . . 1 . . . . . . . . . . . . . . . . . . . . . . . . . . . . . . . 1 . . . . Gate Test 138-A 1 | . . . . . . . . . . . . . . . . . . . . . . . . . . . . . . . . . . . . . . . . . 1 Gate Test 138-B 1 | . . . . . . . . . . . . . . . . . . . . . . . . . . . . . . . . . . . . . . . . . 1 Gate Test 138-C 2 | . . . . . . . . . . . . . . . . . . . . . . . . . . . . . . . . . . . . . . . . . 2 Fabricator Hacks 15 | . . . . . . . . . . . . . . 4 . . . . . . . . . . . 3 . . . 1 . . . 6 . . . 1 . . . Network Status 5 | . . . . . . . . . . . . . . 1 . . . . . . . . . . . 1 . . . 1 . . . 1 . . . 1 . . . Load Schematic 7 | . . . . . . . . . . . . . . 2 . . . . . . . . . . . 1 . . . . . . . 4 . . . . . . . Build 3 | . . . . . . . . . . . . . . 1 . . . . . . . . . . . 1 . . . . . . . 1 . . . . . . . Repair Station Hacks 22 | . . . 2 . . . . . . . . . . 6 . . . . . 2 . . . . . . . . . 5 . 1 . . 6 . . . . . . Scan Component 11 | . . . . . . . . . . . . . . 3 . . . . . 1 . . . . . . . . . 3 . 1 . . 3 . . . . . . Repair 9 | . . . . . . . . . . . . . . 3 . . . . . 1 . . . . . . . . . 2 . . . . 3 . . . . . . Refit 2 | . . . 2 . . . . . . . . . . . . . . . . . . . . . . . . . . . . . . . . . . . . . . Recycling Unit Hacks 11 | . . . 1 . . . 2 . . . . . . . . . . . . . . . . . . 4 . . . 2 . . . 2 . . . . . . . Retrieve Matter 3 | . . . . . . . . . . . . . . . . . . . . . . . . . . 1 . . . 1 . . . 1 . . . . . . . Retrieve Components 8 | . . . 1 . . . 2 . . . . . . . . . . . . . . . . . . 3 . . . 1 . . . 1 . . . . . . . Scanalyzer 33 | . . . . . . . 8 . . . 3 5 . 3 . . . . . . . . . . . . . . . 5 . 1 . 5 1 2 . . . . . Insert Component 8 | . . . . . . . . . . . . 1 . 1 . . . . . . . . . . . . . . . 1 . 1 . 3 . 1 . . . . . Analyze 5 | . . . . . . . . . . . . 1 . 1 . . . . . . . . . . . . . . . 2 . . . 1 . . . . . . . Retrieve Study 20 | . . . . . . . 8 . . . 3 3 . 1 . . . . . . . . . . . . . . . 2 . . . 1 1 1 . . . . . Garrison Access Hacks 36 | . . . . . . . 1 . 1 . . . . . . . . . . 1 . . . . 2 2 . . . 4 . 4 . 6 1 2 2 4 6 . . Unlock Access 5 | . . . . . . . 1 . 1 . . . . . . . . . . 1 . . . . . 1 . . . . . 1 . . . . . . . . . Seal Access 15 | . . . . . . . . . . . . . . . . . . . . . . . . . 1 . . . . 2 . 1 . 3 1 1 1 2 3 . . Coupler Status 16 | . . . . . . . . . . . . . . . . . . . . . . . . . 1 1 . . . 2 . 2 . 3 . 1 1 2 3 . . Unauthorized Hacks 78 | . . . 2 . . . 6 1 2 2 1 3 . 6 . . . . . 2 . . . . 7 12 1 . . 6 . 1 1 16 . 5 1 1 2 . . Terminals 45 | . . . 2 . . . 6 1 2 2 1 3 . 4 . . . . . 2 . . . . 7 . 1 . . 1 . 1 1 4 . 4 . 1 2 . . Track 8 | . . . . . . . 1 . . . . . . 1 . . . . . . . . . . 3 . . . . . . . . . . 1 . . 2 . . Assimilate 3 | . . . . . . . . . 1 . . . . . . . . . . . . . . . 1 . . . . . . . . 1 . . . . . . . Botnet 25 | . . . 1 . . . 2 1 1 2 1 2 . 2 . . . . . 2 . . . . 2 . 1 . . 1 . 1 1 2 . 2 . 1 . . . Operators 4 | . . . 1 . . . . . . . . . . . . . . . . . . . . . 1 . . . . . . . . 1 . 1 . . . . . Skim 5 | . . . . . . . 3 . . . . 1 . 1 . . . . . . . . . . . . . . . . . . . . . . . . . . . Fabricators 14 | . . . . . . . . . . . . . . 2 . . . . . . . . . . . 3 . . . 1 . . . 8 . . . . . . . Report 2 | . . . . . . . . . . . . . . . . . . . . . . . . . . . . . . . . . . 2 . . . . . . . Prioritize 2 | . . . . . . . . . . . . . . . . . . . . . . . . . . 1 . . . . . . . 1 . . . . . . . Liberate 4 | . . . . . . . . . . . . . . 1 . . . . . . . . . . . 1 . . . . . . . 2 . . . . . . . Haulers 5 | . . . . . . . . . . . . . . 1 . . . . . . . . . . . 1 . . . 1 . . . 2 . . . . . . . Recompile 1 | . . . . . . . . . . . . . . . . . . . . . . . . . . . . . . . . . . 1 . . . . . . . Repair Stations 1 | . . . . . . . . . . . . . . . . . . . . . . . . . . 1 . . . . . . . . . . . . . . . Patch 1 | . . . . . . . . . . . . . . . . . . . . . . . . . . 1 . . . . . . . . . . . . . . . Recycling Units 14 | . . . . . . . . . . . . . . . . . . . . . . . . . . 6 . . . 4 . . . 4 . . . . . . . Monitor 3 | . . . . . . . . . . . . . . . . . . . . . . . . . . 1 . . . 1 . . . 1 . . . . . . . Reject 5 | . . . . . . . . . . . . . . . . . . . . . . . . . . 3 . . . 1 . . . 1 . . . . . . . Recyclers 3 | . . . . . . . . . . . . . . . . . . . . . . . . . . 1 . . . 1 . . . 1 . . . . . . . Mask 3 | . . . . . . . . . . . . . . . . . . . . . . . . . . 1 . . . 1 . . . 1 . . . . . . . Scanalyzers 2 | . . . . . . . . . . . . . . . . . . . . . . . . . . . . . . . . . . . . 1 1 . . . . Researchers 2 | . . . . . . . . . . . . . . . . . . . . . . . . . . . . . . . . . . . . 1 1 . . . . Garrison Access 2 | . . . . . . . . . . . . . . . . . . . . . . . . . . 2 . . . . . . . . . . . . . . . Reprogram 1 | . . . . . . . . . . . . . . . . . . . . . . . . . . 1 . . . . . . . . . . . . . . . Eject 1 | . . . . . . . . . . . . . . . . . . . . . . . . . . 1 . . . . . . . . . . . . . . . Data Cores Recovered 5 | . . . . . . . . . . . . . . 2 . . . . . . . . . . 1 . . . . . . 1 . . . 1 . . . . . Used 2 | . . . . . . . . . . . . . . 1 . . . . . . . . . . . . . . . . . 1 . . . . . . . . . Hacking Detections 139 | . 2 1 7 . . . 10 1 3 3 5 6 . 18 . . . . . 6 . 7 1 . 10 6 2 . . 6 . 4 2 8 2 8 4 8 9 . . Full Trace Events 10 | . . . . . . . 1 . . 1 1 1 . 2 . . . . . . . 3 . . . 1 . . . . . . . . . . . . . . . Feedback Events 1 | . . . . . . . . . . . . . . . . . . . . . . 1 . . . . . . . . . . . . . . . . . . . Corruption 1 | . . . . . . . . . . . . . . . . . . . . . . 1 . . . . . . . . . . . . . . . . . . . Feedback Blocked . | . . . . . . . . . . . . . . . . . . . . . . . . . . . . . . . . . . . . . . . . . . Robot Schematics Acquired 9 | . . 1 . . . . . . . . . . . . . . 4 . . . . . . . . . . . . . . . . . . 1 3 . . . . Robots Built . | . . . . . . . . . . . . . . . . . . . . . . . . . . . . . . . . . . . . . . . . . . Authchips . | . . . . . . . . . . . . . . . . . . . . . . . . . . . . . . . . . . . . . . . . . . Time . | . . . . . . . . . . . . . . . . . . . . . . . . . . . . . . . . . . . . . . . . . . Total Robot Build Rating . | . . . . . . . . . . . . . . . . . . . . . . . . . . . . . . . . . . . . . . . . . . Part Schematics Acquired 40 | . . . 1 . . . . . . . . . . 1 . . 15 . . 2 . . . . . . . . . 1 . . . 1 . 7 12 . . . . Parts Built 5 | . . . . . . . . . . . . . . 2 . . . . . . . . . . . 2 . . . . . . . 1 . . . . . . . Authchips 1 | . . . . . . . . . . . . . . . . . . . . . . . . . . . . . . . . . . 1 . . . . . . . Time 215 | . . . . . . . . . . . . . . 62 . . . . . . . . . . . 42 . . . . . . . 111 . . . . . . . Total Part Build Rating 21 | . . . . . . . . . . . . . . 4 . . . . . . . . . . . 8 . . . . . . . 9 . . . . . . . Part Studies Acquired 19 | . . . . . . . 7 . . . 3 3 . 1 . . . . . . . . . . . . . . . 2 . . . 1 1 1 . . . . . Parts Repaired 9 | . . . . . . . . . . . . . . 3 . . . . . 1 . . . . . . . . . 2 . . . . 3 . . . . . . Time 358 | . . . . . . . . . . . . . . 102 . . . . . 44 . . . . . . . . . 66 . . . . 146 . . . . . . Parts Recycled . | . . . . . . . . . . . . . . . . . . . . . . . . . . . . . . . . . . . . . . . . . . Recycled Matter . | . . . . . . . . . . . . . . . . . . . . . . . . . . . . . . . . . . . . . . . . . . Retrieved Matter . | . . . . . . . . . . . . . . . . . . . . . . . . . . . . . . . . . . . . . . . . . . Retrieved Components 9 | . . . 2 . . . 5 . . . . . . . . . . . . . . . . . . 1 . . . . . . . 1 . . . . . . . Parts Scanalyzed 4 | . . . . . . . . . . . . 1 . 1 . . . . . . . . . . . . . . . 1 . 1 . . . . . . . . . Part Schematics Acquired 3 | . . . . . . . . . . . . . . 1 . . . . . . . . . . . . . . . 1 . . . 1 . . . . . . . Parts Damaged . | . . . . . . . . . . . . . . . . . . . . . . . . . . . . . . . . . . . . . . . . . . Bothacking | -11 -10 -10 -9 -9 -9 -8 -8 -8 -8 -8 -8 -7 -7 -7 -7 -7 -7 -7 -6 -6 -6 -6 -6 -6 -6 -5 -5 -5 -5 -4 -4 -4 -4 -4 -3 -3 -3 -2 -1 -1 -1 ------------ Run | Yrd Mat Min Mat Min Exi Min Mat Gar Mat Gar Mat Fac Was Fac Low Low Zio Dee Pro Fac Gar Ext Cet Arc Hub Fac Gar Fac DSF Fac Was Fac Gar Fac Res Qua Frg Res Acc Com Ac0 Used RIF Installer 3 | . . . . . . . . . . . . . . . . . . . . . 1 . . . . . 1 . . . . . 1 . . . . . . . . Watcher Feeds 1 | . . . . . . . . . . . . . . . . . . . . . . . . . . . 1 . . . . . . . . . . . . . . Program Shield 1 | . . . . . . . . . . . . . . . . . . . . . . . . . . . . . . . . . 1 . . . . . . . . Robots Hacked 40 | . . 1 . . . . . . . . . 1 . . . . 3 . . . . . . 2 . 1 2 . . 5 6 3 8 4 . 2 2 . . . . Non-combat 8 | . . 1 . . . . . . . . . 1 . . . . 1 . . . . . . . . . . . . 3 . . 1 1 . . . . . . . Combat 30 | . . . . . . . . . . . . . . . . . 2 . . . . . . 2 . . 2 . . 2 6 3 7 2 . 2 2 . . . . Robot Hacks Applied 41 | . . 1 . . . . . . . . . 1 . . . . 3 . . . . . . 2 . . 2 . . 5 6 3 8 6 . 2 2 . . . . parse_system 7 | . . 1 . . . . . . . . . . . . . . 3 . . . . . . 2 . . . . . . . 1 . . . . . . . . . find_chute 2 | . . . . . . . . . . . . 1 . . . . . . . . . . . . . . . . . 1 . . . . . . . . . . . ignore_repairs 1 | . . . . . . . . . . . . . . . . . . . . . . . . . . . . . . 1 . . . . . . . . . . . purge_threat 4 | . . . . . . . . . . . . . . . . . . . . . . . . . . . . . . . . . . 4 . . . . . . . disable_scanner 4 | . . . . . . . . . . . . . . . . . . . . . . . . . . . . . . . . . . . . 2 2 . . . . ignore_targets 6 | . . . . . . . . . . . . . . . . . . . . . . . . . . . . . . . 6 . . . . . . . . . . overwrite_iff 2 | . . . . . . . . . . . . . . . . . . . . . . . . . . . . . . . . . 1 1 . . . . . . . formatsys_low 2 | . . . . . . . . . . . . . . . . . . . . . . . . . . . . . . 1 . . 1 . . . . . . . . formatsys_high 13 | . . . . . . . . . . . . . . . . . . . . . . . . . . . 2 . . 2 . 2 6 1 . . . . . . . Manual 2 | . . . . . . . . . . . . . . . . . . . . . . . . . . 1 . . . . . . . 1 . . . . . . . Relay Couplers Released 89 | . . . . . . . . 17 . 17 . . . . . . . . . . 11 . . . 4 4 9 . . 2 . 1 10 8 1 4 . 1 . . . Ejected 4 | . . . . . . . . . . . . . . . . . . . . . . . . . . 4 . . . . . . . . . . . . . . . Machine Destruction 78 | . . . . . . . . 17 . 17 . . . . . . . . . . 11 . . . . . 9 . . 2 . 1 10 5 1 4 . 1 . . . Programmers 7 | . . . . . . . . . . . . . . . . . . . . . . . . . 4 . . . . . . . . 3 . . . . . . . Attached 13 | . . . . . . . . . . . . . . . . . . . . . . . . . . . 1 . . 3 . . 6 2 . . . 1 . . . Fabnet Peak Effective % . | . . . . . . . . . . . . . . . . . . . . . . . . . . . . . . . . . . . . . . . . . . Robots Rewired 30 | . . . . . . . . 3 . 9 . 1 . . . . . . 2 . 7 4 . . . . 1 . . . . . 3 . . . . . . . . Allies Hacked . | . . . . . . . . . . . . . . . . . . . . . . . . . . . . . . . . . . . . . . . . . . Hacks Repelled . | . . . . . . . . . . . . . . . . . . . . . . . . . . . . . . . . . . . . . . . . . . Allies | -11 -10 -10 -9 -9 -9 -8 -8 -8 -8 -8 -8 -7 -7 -7 -7 -7 -7 -7 -6 -6 -6 -6 -6 -6 -6 -5 -5 -5 -5 -4 -4 -4 -4 -4 -3 -3 -3 -2 -1 -1 -1 -------- Run | Yrd Mat Min Mat Min Exi Min Mat Gar Mat Gar Mat Fac Was Fac Low Low Zio Dee Pro Fac Gar Ext Cet Arc Hub Fac Gar Fac DSF Fac Was Fac Gar Fac Res Qua Frg Res Acc Com Ac0 Total Allies 92 | . . 5 . . . . . 5 . 9 . 1 . . 2 . . . 2 . 7 13 5 . . 1 3 . . 3 16 2 11 7 . . . . . . . Largest Group 15 | . . 4 2 . . . . 4 3 8 8 1 . . 2 . . . 2 . 4 15 11 8 8 1 4 3 3 2 15 13 9 4 . . . . . . . Highest-Rated Group 860 | . . 71 24 . . . . 79 48 178 178 40 . . 40 . . . 62 . 302 738 860 662 655 89 302 217 217 98 552 498 396 193 . . . . . . . Highest-Rated Ally 159 | . . 31 16 . . . . 39 16 39 39 40 . . 20 . . . 31 . 119 159 159 109 109 89 119 119 119 49 46 54 116 116 . . . . . . . Initial Warlord ECA Mod 20 | . . . . . . . . . 11 11 20 19 19 19 19 19 19 19 18 18 18 . . . . . . . . . . . . . . . . . . . . Total Orders 70 | . . 2 . . . . . . . 6 . . . . . . . . . . 14 2 4 1 8 3 12 . . 4 1 2 5 6 . . . . . . . STAY 40 | . . 1 . . . . . . . 3 . . . . . . . . . . 8 1 2 1 5 2 6 . . 3 1 2 2 3 . . . . . . . ROAM 1 | . . . . . . . . . . . . . . . . . . . . . . . . . 1 . . . . . . . . . . . . . . . . FOLLOW 26 | . . 1 . . . . . . . 3 . . . . . . . . . . 6 1 2 . 2 1 6 . . 1 . . 2 1 . . . . . . . AID 3 | . . . . . . . . . . . . . . . . . . . . . . . . . . . . . . . . . 1 2 . . . . . . . Ally Attacks 923 | . . 55 16 . . . . 50 23 26 49 . . . . . . . 5 . 15 157 75 31 48 1 21 . 21 16 111 96 74 33 . . . . . . . Total Damage 21894 | . . 552 163 . . . . 519 244 505 803 . . . . . . . 84 . 496 4128 2039 1042 1425 60 943 . 512 608 1863 1646 2193 2069 . . . . . . . Kills 149 | . . 6 . . . . . 5 3 7 11 . . . . . . . . . 1 31 8 4 14 . 9 . 5 2 2 10 15 16 . . . . . . . Allies Corrupted 1 | . . . . . . . . . . . . . . . . . . . 1 . . . . . . . . . . . . . . . . . . . . . . Allies Melted 4 | . . . . . . . . . . . . . . . . . . . . . . 1 . . . . . . . . . 1 . 2 . . . . . . . Intel | -11 -10 -10 -9 -9 -9 -8 -8 -8 -8 -8 -8 -7 -7 -7 -7 -7 -7 -7 -6 -6 -6 -6 -6 -6 -6 -5 -5 -5 -5 -4 -4 -4 -4 -4 -3 -3 -3 -2 -1 -1 -1 ------- Run | Yrd Mat Min Mat Min Exi Min Mat Gar Mat Gar Mat Fac Was Fac Low Low Zio Dee Pro Fac Gar Ext Cet Arc Hub Fac Gar Fac DSF Fac Was Fac Gar Fac Res Qua Frg Res Acc Com Ac0 Active Infowar (turns) 26893 | . 410 1436 522 195 3486 76 . . . . 221 671 197 1873 1459 1663 2191 . . . . 248 . . . 543 . . 156 1154 . 900 395 2144 647 1460 733 354 547 3212 . Optics 3583 | . . . . . . . . . . . . . . . . . . . . . . . . . . 542 . . . . . . . . . . . . . 3041 . Sensors 4270 | . . . 320 195 3486 76 . . . . . 191 . 2 . . . . . . . . . . . . . . . . . . . . . . . . . . . Terrain 1644 | . . . . . . . . . . . . . . . . . . . . . . . . . . 2 . . . 1 . . . . 599 793 249 . . . . Seismic 13072 | . 410 1436 202 . . . . . . . 221 671 197 1871 1459 1663 1739 . . . . 248 . . . . . . . . . . . 1070 640 908 337 . . . . Decoding 452 | . . . . . . . . . . . . . . . . . 452 . . . . . . . . . . . . . . . . . . . . . . . . Cloaking 1457 | . . . . . . . . . . . . 20 . . 461 . . . . . . . . . . 1 . . . . . . . 1 . . 80 311 445 138 . Jamming 8515 | . . . . . . . . . . . . . . 201 . . . . . . . . . . . . . . 156 1154 . 900 395 2136 647 1459 630 242 487 108 . Robot Analysis Total 2 | . 1 . . . . . . . . . . . . . . . . . . . . . . . . . . . . . . . . . . 1 . . . . . Derelict Logs Recovered 7 | . . 1 . . . . . . . . . . . . 1 2 2 . 1 . . . . . . . . . . . . . . . . . . . . . . Drone Launches . | . . . . . . . . . . . . . . . . . . . . . . . . . . . . . . . . . . . . . . . . . . Drone Recoveries . | . . . . . . . . . . . . . . . . . . . . . . . . . . . . . . . . . . . . . . . . . . Exploration | -11 -10 -10 -9 -9 -9 -8 -8 -8 -8 -8 -8 -7 -7 -7 -7 -7 -7 -7 -6 -6 -6 -6 -6 -6 -6 -5 -5 -5 -5 -4 -4 -4 -4 -4 -3 -3 -3 -2 -1 -1 -1 ------------- Run | Yrd Mat Min Mat Min Exi Min Mat Gar Mat Gar Mat Fac Was Fac Low Low Zio Dee Pro Fac Gar Ext Cet Arc Hub Fac Gar Fac DSF Fac Was Fac Gar Fac Res Qua Frg Res Acc Com Ac0 Turns Passed 58528 | 84 431 1491 642 196 3486 1957 5087 1926 431 1432 1042 782 197 1987 1555 3038 3626 3702 1901 626 1576 1218 475 357 726 1394 1112 7 325 1253 409 904 1151 2208 647 1470 2280 376 586 4057 378 Spaces Moved 34521 | 53 276 639 939 340 671 888 2442 912 213 560 532 511 134 1419 1234 1494 2160 1976 911 306 552 701 277 199 441 685 554 5 139 624 267 518 473 1161 299 638 2432 495 1074 3956 421 Core 725 | 53 101 41 8 . 500 22 . . . . . . . . . . . . . . . . . . . . . . . . . . . . . . . . . . . Treads 2555 | . 175 598 . . . . 22 4 . 28 . . 9 20 . . . 451 . . 215 171 14 . . 147 411 5 132 43 . 17 68 24 . 1 . . . . . Legs 2033 | . . . . . . . . . . . . . . . . . . 574 911 306 242 . . . . . . . . . . . . . . . . . . . . Wheels 19645 | . . . . . . 838 2420 908 213 532 532 511 125 1399 1234 1494 2160 951 . . 95 530 263 199 441 538 143 . 7 581 267 501 405 1137 299 637 285 . . . . Hover 8248 | . . . 155 . . . . . . . . . . . . . . . . . . . . . . . . . . . . . . . . . 2147 495 1074 3956 421 Flight 1315 | . . . 776 340 171 28 . . . . . . . . . . . . . . . . . . . . . . . . . . . . . . . . . . . Fastest Speed 30 | 50 50 50 31 40 40 140 86 146 161 146 100 105 105 100 100 185 100 123 130 180 135 120 120 120 135 135 135 160 135 120 120 120 135 135 105 106 32 40 36 35 30 Average Speed 129 | 75 119 153 39 40 516 177 151 158 161 164 147 124 114 106 120 191 134 169 183 180 165 140 129 132 135 151 155 160 158 130 120 131 166 151 123 114 49 40 36 75 34 Slowest Speed 950 | 100 160 160 110 40 900 950 210 325 161 330 205 130 250 290 200 200 185 210 195 180 240 160 240 135 135 240 160 160 160 270 120 270 270 270 150 270 176 40 36 117 40 Overloaded Moves 96 | . . . . . . . . . . . . . . . . . . . . . . . . . . . . . . . . . . . . . . . . . 96 Propulsion Burnouts . | . . . . . . . . . . . . . . . . . . . . . . . . . . . . . . . . . . . . . . . . . . Robots Hopped 3 | . . . 3 . . . . . . . . . . . . . . . . . . . . . . . . . . . . . . . . . . . . . . Potential Cave-ins . | . . . . . . . . . . . . . . . . . . . . . . . . . . . . . . . . . . . . . . . . . . Cave-ins Triggered . | . . . . . . . . . . . . . . . . . . . . . . . . . . . . . . . . . . . . . . . . . . Teleports 61 | . . . . . . . . . . . . . . . . . . . . . . . . . . . . . . . . . . . . . 14 15 27 5 . Exploration Rate (%) 55 | 3 31 99 47 32 72 94 89 92 29 77 29 11 72 40 98 99 88 78 89 10 56 86 56 79 50 25 53 1 92 24 83 20 62 50 13 72 34 29 33 96 24 Regions Visited 41 Branch Regions 17 Pre-discovered Areas 5 | . . . . . 1 . . . . . . . . . 1 1 2 . . . . . . . . . . . . . . . . . . . . . . . . Known Exits Taken 13 | . . . . . . . 1 . 1 . 1 . . 1 . . 1 . 1 1 . . . . 1 1 . 1 . . . 1 . 1 . . . . 1 . . Unknown Exits Taken 18 | 1 1 1 1 1 1 1 . . . . . . . . 1 1 . 1 . . . 1 1 1 . . . . . . . . . . 1 1 1 1 . 1 . Scrap Searched 23 | . . 2 . . . 1 . . . . . . . . 7 8 4 . 1 . . . . . . . . . . . . . . . . . . . . . . Spaces Dug 416 | . 11 10 56 . . 49 27 30 1 35 7 3 3 27 4 8 . 2 2 4 23 1 . . 6 13 6 . . 11 2 2 11 22 7 11 2 4 3 13 . Terrain Destroyed 5325 | . 21 10 108 . . 115 64 163 3 140 36 3 44 38 56 38 . 64 20 25 89 3 . . 314 79 64 . 9 89 4 35 85 92 13 21 33 8 4 3352 83 Melee 91 | . . 1 1 . . . 24 16 . 19 . . . 26 1 . . 2 . 1 . . . . . . . . . . . . . . . . . . . . . Projectile 497 | . . . . . . 14 . 1 1 2 . 3 5 12 8 38 . 15 5 9 37 3 . . 12 36 8 . 6 13 2 3 11 38 13 21 32 8 4 68 69 AOE 4681 | . 21 9 107 . . 101 40 146 . 119 36 . 39 . 47 . . 47 15 15 52 . . . 302 43 56 . . 70 . 28 62 44 . . 1 . . 3281 . Terrain Rammed . | . . . . . . . . . . . . . . . . . . . . . . . . . . . . . . . . . . . . . . . . . . Walls Destroyed . | . . . . . . . . . . . . . . . . . . . . . . . . . . . . . . . . . . . . . . . . . . Machines Disabled . | . . . . . . . . . . . . . . . . . . . . . . . . . . . . . . . . . . . . . . . . . . Actions | -11 -10 -10 -9 -9 -9 -8 -8 -8 -8 -8 -8 -7 -7 -7 -7 -7 -7 -7 -6 -6 -6 -6 -6 -6 -6 -5 -5 -5 -5 -4 -4 -4 -4 -4 -3 -3 -3 -2 -1 -1 -1 --------- Run | Yrd Mat Min Mat Min Exi Min Mat Gar Mat Gar Mat Fac Was Fac Low Low Zio Dee Pro Fac Gar Ext Cet Arc Hub Fac Gar Fac DSF Fac Was Fac Gar Fac Res Qua Frg Res Acc Com Ac0 Total 45411 | 76 346 1139 1121 383 698 1140 3462 1223 255 822 722 600 151 1780 1283 1611 2844 2275 1126 357 976 879 368 276 508 1005 761 4 216 995 325 650 724 1469 546 1334 3481 657 1246 4928 649 Wait 4972 | . 9 424 61 19 . 29 511 44 2 12 98 26 . 133 8 67 593 102 178 8 153 82 62 58 32 105 116 . 5 213 12 25 107 92 211 453 401 55 6 435 25 Move 34478 | 52 275 638 932 339 670 887 2442 911 213 559 531 511 133 1418 1233 1493 2159 1975 910 306 550 700 276 198 440 685 553 4 138 624 266 518 472 1160 298 637 2429 494 1073 3955 421 Hop 3 | . . . 3 . . . . . . . . . . . . . . . . . . . . . . . . . . . . . . . . . . . . . . Pick Up 712 | 7 13 12 15 4 17 59 142 15 6 9 28 4 2 23 6 10 18 32 2 6 13 4 . . . 28 5 . 12 20 4 4 11 25 . 17 66 7 8 48 10 Fast Attach 285 | . 3 2 8 2 1 11 15 1 . 2 3 5 . 14 2 . 8 13 5 2 12 10 8 5 3 13 6 . 5 9 2 2 2 2 7 23 48 3 7 10 11 Attach 251 | 2 5 5 4 4 3 6 9 3 . 7 7 3 3 5 4 1 6 20 . 5 4 . . . . 18 6 . 5 3 . 1 1 10 . 19 31 8 5 26 12 Detach 100 | 2 . . . 2 . 1 1 . . 2 2 . . 1 2 . 2 7 . 2 3 4 . . . 4 8 . . 1 1 . . 1 . 14 18 3 3 8 8 Swap 804 | . 5 5 14 . 1 25 101 41 . 53 12 16 . 26 10 4 1 14 . 3 14 1 2 1 . 8 15 . 12 35 17 33 24 52 6 37 65 29 50 45 27 Drop 712 | 2 12 8 20 2 6 34 49 12 6 10 12 10 1 35 6 7 26 38 6 7 23 14 8 5 2 36 11 . 20 32 6 6 9 16 2 41 96 6 9 41 20 Fire 2235 | 11 11 8 27 . . 87 140 64 28 50 29 22 12 21 11 23 . 66 9 17 105 28 6 3 31 107 33 . 19 55 17 44 77 111 22 89 257 52 82 346 115 Melee 342 | . 11 2 37 11 . 1 34 32 . 85 . 2 . 55 1 . 4 4 . 1 41 . 6 6 . 1 1 . . 3 . . . . . 4 . . . . . Ram . | . . . . . . . . . . . . . . . . . . . . . . . . . . . . . . . . . . . . . . . . . . Kick . | . . . . . . . . . . . . . . . . . . . . . . . . . . . . . . . . . . . . . . . . . . Crush 4 | . 2 2 . . . . . . . . . . . . . . . . . . . . . . . . . . . . . . . . . . . . . . . Escape Stasis 227 | . . . . . . . . 56 . 32 . . . . . . . . . . 5 16 . . . . . . . . . 16 16 . . . 70 . 3 13 . Rewire 148 | . . . . . . . . 44 . . . 1 . . . . . . 16 . 53 20 . . . . 7 . . . . 1 5 . . . . . . 1 . Trap 92 | . . 33 . . . . . . . . . . . 49 . 6 . 4 . . . . . . . . . . . . . . . . . . . . . . . Miscellaneous 46 | . . . . . . . 18 . . 1 . . . . . . 27 . . . . . . . . . . . . . . . . . . . . . . . . Route ------- -11/Scrapyard -10/Materials -10/Mines (discovered 3 exits: *Mat x2 / [*Sub]) -9/Materials (discovered 4 exits: *Mat / [*Min] / [*Sto x2]) -9/Mines (discovered 3 exits: *Mat / *Exi / [*Zio]) -9/Exiles (discovered 2 exits: [*Min x2]) -8/Mines (discovered 2 exits: *Mat x2) -8/Materials (discovered 3 exits: *Fac x2 / Gar) -8/Garrison (discovered 4 exits: *Mat x4) -8/Materials (discovered 2 exits: *Fac / Gar) -8/Garrison (discovered 3 exits: *Mat x3) -8/Materials -7/Factory (discovered 2 exits: *Low x2) -7/Waste -7/Factory (discovered 3 exits: *Fac / *Low x2) -7/Lower Caves -7/Lower Caves (discovered 2 exits: *Fac / [*Zio]) -7/Zion (discovered 2 exits: *Dee / [*Pro]) -7/Deep Caves -6/Proximity Caves -6/Factory (discovered 6 exits: Fac / Low x2 / Ext x2 / Gar) -6/Garrison -6/Extension (discovered 3 exits: *Fac x2 / *Cet) -6/Cetus (discovered 2 exits: *Fac / [*Arc]) -6/Archives (discovered 3 exits: *Fac / *Hub x2) -6/Hub_04(d) (discovered 4 exits: *Fac x4) -5/Factory (discovered 3 exits: *Upp x2 / Gar) -5/Garrison (discovered 4 exits: *Fac x4) -5/Factory -5/DSF -4/Factory (discovered 2 exits: *Res x2) -4/Waste -4/Factory (discovered 2 exits: *Res / Gar) -4/Garrison (discovered 3 exits: *Fac x3) -4/Factory (discovered 6 exits: *Res x4 / *Upp x2) -3/Research -3/Quarantine (discovered 3 exits: *Res / [*Sec] / *Frg) -3/Protoforge -2/Research -1/Access -1/Command (discovered 3 exits: [*Sur x2] / *Ac0) -1/Access_0 Subspace History --------- Turn | Location | Event 28 | -11/Scrapyard | Discovered new exit (range 15) 85 | -11/Scrapyard | Entered Materials 179 | -10/Materials | Central database locked down 313 | -10/Materials | Build established: Mutant 466 | -10/Materials | Discovered new exit (range 7) 497 | -10/Materials | Released all parts (6) 516 | -10/Materials | Entered Mines 577 | -10/Mines | Assisted by bots powering up and referring to "LRC-V3" 602 | -10/Mines | Discovered new exit (range 8) 820 | -10/Mines | Learned 2 Materials zone layouts 983 | -10/Mines | Discovered new exit (range 15) 1073 | -10/Mines | Met a Derelict who couldn't figure out how to use a Trap Extractor 1721 | -10/Mines | Discovered new exit (range 10) 1996 | -10/Mines | Released all parts (7) 2007 | -10/Mines | Entered Materials 2007 | -9/Materials | Accompanied by 2 allies 2007 | -9/Materials | Evolved 2 slots: Propulsion x2 2104 | -9/Materials | Discovered new exit (range 11) 2183 | -9/Materials | Discovered new exit (range 11) 2604 | -9/Materials | Build established: Sprinter 2641 | -9/Materials | Discovered new exit (range 15) 2643 | -9/Materials | Discovered new exit (range 6) 2645 | -9/Materials | Released all parts (9) 2649 | -9/Materials | Entered Mines 2657 | -9/Mines | Discovered new exit (range 8) 2703 | -9/Mines | Met a Derelict bent on vengeance 2709 | -9/Mines | Deemed a non-threat by the Exiles lab entrance 2709 | -9/Mines | Discovered new exit (range 5) 2719 | -9/Mines | A Derelict revealed a hidden shortcut to a safe place 2752 | -9/Mines | Assembled infested the area 2753 | -9/Mines | A weapon hastily lodged in a ceiling crevice suddenly fell to the ground 2757 | -9/Mines | Assisted by a Guerilla fighting off Assembled 2845 | -9/Mines | Entered Exiles 2851 | -9/Exiles | Discovered new exit (range 15) 2856 | -9/Exiles | Met 8R-AWN 2862 | -9/Exiles | Met EX-HEX 2882 | -9/Exiles | Met EX-DEC 2889 | -9/Exiles | Learned location of Zion (-7) 2896 | -9/Exiles | Met EX-BIN 2902 | -9/Exiles | Aligned with FarCom system 2902 | -9/Exiles | Given EX-Vault access code 2912 | -9/Exiles | Opened EX-Vault 2920 | -9/Exiles | Found XL Autogun Array 2926 | -9/Exiles | Found Cloak of Protection 2961 | -9/Exiles | Build established: Mutant 2967 | -9/Exiles | Warned to stay clear of 0b10 Research branches 3463 | -9/Exiles | Discovered new exit (range 14) 5516 | -9/Exiles | Found PSU Rigger 6331 | -9/Exiles | Stole three prototypes: Cloak of Protection, PSU Rigger, XL Autogun Array 6331 | -9/Exiles | Entered Mines 7000 | -8/Mines | Build established: Hauler-Mutant 7004 | -8/Mines | Found DCF Scrap (14 items) 7375 | -8/Mines | Discovered new exit (range 8) 8181 | -8/Mines | Core integrity fell below 50% 8234 | -8/Mines | Discovered new exit (range 14) 8288 | -8/Mines | Entered Materials 8288 | -8/Materials | Evolved 2 slots: Weapon x2 8592 | -8/Materials | Build established: Hauler-Skirmisher 10379 | -8/Materials | Discovered new exit (range 3) 10425 | -8/Materials | Central database locked down 12202 | -8/Materials | Discovered new exit (range 6) 12256 | -8/Materials | Lost 3 parts (1n1u1w) 12688 | -8/Materials | First assault squad dispatched 12826 | -8/Materials | Identified exit to Factory 13111 | -8/Materials | Garrison activated, responded to threat 13375 | -8/Materials | Identified exit to Garrison 13375 | -8/Materials | Entered Garrison 13461 | -8/Garrison | Triggered checkpoint 13510 | -8/Garrison | Garrison Relay disabled 13682 | -8/Garrison | Garrison Relay disabled 13759 | -8/Garrison | Triggered checkpoint 13854 | -8/Garrison | Triggered checkpoint 14008 | -8/Garrison | Garrison Relay disabled 14049 | -8/Garrison | Discovered new exit (range 13) 14121 | -8/Garrison | Rescued a captive Derelict 14123 | -8/Garrison | Rescued a captive Derelict 14171 | -8/Garrison | Triggered checkpoint 14371 | -8/Garrison | Triggered checkpoint 14423 | -8/Garrison | Triggered checkpoint 14534 | -8/Garrison | Discovered new exit (range 14) 14680 | -8/Garrison | Triggered checkpoint 14754 | -8/Garrison | Phase Generator disabled 14754 | -8/Garrison | Core integrity fell below 50% 14772 | -8/Garrison | Garrison Relay disabled 14966 | -8/Garrison | Triggered checkpoint 15038 | -8/Garrison | Discovered new exit (range 3) 15153 | -8/Garrison | Garrison Relay disabled 15167 | -8/Garrison | Triggered checkpoint 15200 | -8/Garrison | Discovered new exit (range 12) 15301 | -8/Garrison | Entered Materials 15301 | -8/Materials | Accompanied by 3 allies 15527 | -8/Materials | Build established: Scavenger-Skirmisher 15636 | -8/Materials | Discovered exit to Factory (range 4) 15732 | -8/Materials | Identified exit to Garrison 15732 | -8/Materials | Entered Garrison 15776 | -8/Garrison | Triggered checkpoint 15808 | -8/Garrison | Garrison Relay disabled 16025 | -8/Garrison | Triggered checkpoint 16091 | -8/Garrison | Triggered checkpoint 16121 | -8/Garrison | Triggered checkpoint 16142 | -8/Garrison | Destroyed 7 combat bots 16157 | -8/Garrison | Triggered checkpoint 16286 | -8/Garrison | Discovered new exit (range 9) 16353 | -8/Garrison | Discovered new exit (range 57) 16353 | -8/Garrison | Discovered new exit (range 49) 16353 | -8/Garrison | Discovered new exit (range 14) 16438 | -8/Garrison | Lost 3 parts (1n2w) 16875 | -8/Garrison | Phase Generator disabled 16938 | -8/Garrison | Triggered checkpoint 16986 | -8/Garrison | Garrison Relay disabled 17164 | -8/Garrison | Entered Materials 17164 | -8/Materials | Accompanied by 8 allies 17242 | -8/Materials | Garrison activated, responded to threat 17382 | -8/Materials | Lost 3 allies 17505 | -8/Materials | Build established: Hauler-Skirmisher 17696 | -8/Materials | Lost 7 parts (1n4u2w) 17964 | -8/Materials | First assault squad dispatched 17974 | -8/Materials | Build established: Scavenger-Skirmisher 18197 | -8/Materials | Discovered exit to Factory (range 4) 18206 | -8/Materials | Entered Factory 18206 | -7/Factory | Evolved 2 slots: Utility x2 18208 | -7/Factory | FarCom data flow suspended 18538 | -7/Factory | Identified exit to Lower Caves 18758 | -7/Factory | Central database locked down 18988 | -7/Factory | Sucked down chute 18988 | -7/Factory | Entered Waste 18997 | -7/Waste | Spotted C-40 Crusher 18999 | -7/Waste | Spotted C-40 Crusher 19011 | -7/Waste | Spotted C-40 Crusher 19012 | -7/Waste | Spotted C-40 Crusher 19013 | -7/Waste | Spotted C-40 Crusher 19091 | -7/Waste | Spotted C-40 Crusher 19100 | -7/Waste | Crushed by Compactor (1 part destroyed, 1 dropped) 19164 | -7/Waste | Discovered new exit (range 11) 19181 | -7/Waste | Destroyed C-40 Crusher 19185 | -7/Waste | Entered Factory 19718 | -7/Factory | Build established: Scientist-Mutant 20487 | -7/Factory | Fabricated Plasma Cutter? 20555 | -7/Factory | Repaired Arm. Treads+ 20603 | -7/Factory | Repaired Seismic Detector 20642 | -7/Factory | Repaired Hrd. Medium Armor Plating 20741 | -7/Factory | Discovered new exit (range 16) 20829 | -7/Factory | Central database locked down 21062 | -7/Factory | Found Prototype Launcher 21067 | -7/Factory | Identified Rocket Array 21172 | -7/Factory | Entered Lower Caves 21174 | -7/Lower Caves | Encountered a Master Thief 21174 | -7/Lower Caves | Encountered a Master Thief 21175 | -7/Lower Caves | Cloak of Protection stolen by Master Thief 21176 | -7/Lower Caves | Power Sword stolen by Master Thief 21182 | -7/Lower Caves | Met a Warlord Commander 21183 | -7/Lower Caves | Learned location of Warlord (-4) 21184 | -7/Lower Caves | Warlord Commander delivered Encrypted Comm Array 21888 | -7/Lower Caves | Learned Factory trap positions 22232 | -7/Lower Caves | Discovered new exit (range 13) 22448 | -7/Lower Caves | A Commander dispatched an escort 22455 | -7/Lower Caves | Learned 8 Factory zone layouts 22455 | -7/Lower Caves | Learned Factory trap positions 22455 | -7/Lower Caves | Learned Armory terminal intel 22611 | -7/Lower Caves | Build established: Gunner 22727 | -7/Lower Caves | Entered another Lower Caves area 22727 | -7/Lower Caves | Accompanied by 2 allies 22728 | -7/Lower Caves | Commander's escort returned to base 22728 | -7/Lower Caves | Commander's escort returned to base 22745 | -7/Lower Caves | Found DCF Scrap (12 items) 22753 | -7/Lower Caves | Learned Factory garrison access intel 23014 | -7/Lower Caves | Discovered new exit (range 10) 23281 | -7/Lower Caves | Build established: Tank 24111 | -7/Lower Caves | Encountered a Master Thief 24113 | -7/Lower Caves | Encountered a Master Thief 24114 | -7/Lower Caves | Encountered a Master Thief 24114 | -7/Lower Caves | Encountered a Master Thief 24115 | -7/Lower Caves | Imp. Hardlight Generator stolen by Master Thief 24116 | -7/Lower Caves | Enh. Optical Array stolen by Master Thief 24117 | -7/Lower Caves | Mak. Cloaking Device stolen by Master Thief 24118 | -7/Lower Caves | Power Sword stolen by Master Thief 24402 | -7/Lower Caves | Build established: Gunner 24988 | -7/Lower Caves | Discovered new exit (range 5) 25765 | -7/Lower Caves | Entered Zion 25869 | -7/Zion | Discovered new exit (range 10) 25960 | -7/Zion | Found Prototype Processor 25966 | -7/Zion | Found Prototype Processor 25968 | -7/Zion | Found Prototype Hackware 25971 | -7/Zion | Found Prototype Processor 25974 | -7/Zion | Found Prototype Processor 25976 | -7/Zion | Found Prototype Processor 25977 | -7/Zion | Identified Exp. Core Analyzer 26080 | -7/Zion | Identified Exp. Target Analyzer (x2) 26096 | -7/Zion | Identified Exp. Hacking Suite 26123 | -7/Zion | Identified Exp. Armor Integrity Analyzer 26130 | -7/Zion | Identified Exp. Terrain Scan Processor 26360 | -7/Zion | Met Imprinter 26501 | -7/Zion | Found CR-A16's Pointy Stick 26565 | -7/Zion | Build established: Scientist-Mutant 26696 | -7/Zion | Found Prototype Launcher 26709 | -7/Zion | Identified Gui. Missile Launcher 26756 | -7/Zion | Identified exit to Deep Caves 27396 | -7/Zion | Found Relay Coupler [Programmer] 27799 | -7/Zion | Build established: Gunner 28423 | -7/Zion | Saw the warning signs outside the Deep Caves entrance 29106 | -7/Zion | Build established: Tank 29391 | -7/Zion | Entered Deep Caves 29393 | -7/Deep Caves | Met 5H-AD0 29491 | -7/Deep Caves | Z-Facility disabled 29530 | -7/Deep Caves | Attacked by Z-Imprinter 29551 | -7/Deep Caves | Destroyed Z-Imprinter 29706 | -7/Deep Caves | Found Prototype Protection 29706 | -7/Deep Caves | Identified Zio. Weapon Casing 29759 | -7/Deep Caves | Found Zio. Weapon Casing 29766 | -7/Deep Caves | Found Zio. Weapon Casing 29773 | -7/Deep Caves | Found Zio. Weapon Casing 29840 | -7/Deep Caves | Found Prototype Protection 29924 | -7/Deep Caves | Build established: Gunner 30021 | -7/Deep Caves | Discovered new exit (range 11) 30597 | -7/Deep Caves | Build established: Mutant 30805 | -7/Deep Caves | Spotted AG-14504 30840 | -7/Deep Caves | Destroyed AG-14504 30867 | -7/Deep Caves | Lost 3 parts (1p2u) 31050 | -7/Deep Caves | Found Zio. Weapon Casing 31933 | -7/Deep Caves | Spotted AG-20703 31941 | -7/Deep Caves | Core integrity fell below 50% 31971 | -7/Deep Caves | Destroyed AG-20703 31979 | -7/Deep Caves | Found GOLEM Unit 32076 | -7/Deep Caves | Triggered Deep Caves wall 32076 | -7/Deep Caves | Spotted AS-36340 32076 | -7/Deep Caves | Spotted AS-13925 32077 | -7/Deep Caves | Destroyed AS-13925 32085 | -7/Deep Caves | Destroyed AS-36340 32101 | -7/Deep Caves | Destroyed 35 combat bots 32114 | -7/Deep Caves | Found Superbattery 32368 | -7/Deep Caves | Found Zio. Weapon Casing 32681 | -7/Deep Caves | Exposed GOLEM chamber 32684 | -7/Deep Caves | Found GOLEM Unit 32858 | -7/Deep Caves | Build established: Gunner 32914 | -7/Deep Caves | Found Zio. Weapon Casing 33093 | -7/Deep Caves | Entered Proximity Caves 33095 | -6/Proximity Caves | Attracted the attention of an 0b10 checkpoint 33386 | -6/Proximity Caves | Received a Behemoth hack from an annoying Tinkerer 33749 | -6/Proximity Caves | Identified exit to Factory 34994 | -6/Proximity Caves | Entered Factory 34994 | -6/Factory | Evolved 2 slots: Utility x2 34995 | -6/Factory | Identified exit to Factory 34996 | -6/Factory | Loaded intel: 128 trap records 34997 | -6/Factory | Loaded intel: 3 garrison access locations 35347 | -6/Factory | Identified exit to Lower Caves 35347 | -6/Factory | Identified exit to Extension 35385 | -6/Factory | Build established: Scavenger-Gunner 35479 | -6/Factory | Spotted B-75 Beast 35565 | -6/Factory | Repaired Hrd. Heavy Armor Plating 35620 | -6/Factory | Identified exit to Garrison 35620 | -6/Factory | Entered Garrison 35755 | -6/Garrison | Garrison Relay disabled 35790 | -6/Garrison | Triggered checkpoint 35823 | -6/Garrison | Garrison Relay disabled 35902 | -6/Garrison | Triggered checkpoint 35906 | -6/Garrison | Triggered checkpoint 35956 | -6/Garrison | Destroyed 11 combat bots 36097 | -6/Garrison | Triggered checkpoint 36630 | -6/Garrison | Triggered checkpoint 36646 | -6/Garrison | Garrison Relay disabled 36655 | -6/Garrison | Spotted Striker 36671 | -6/Garrison | Spotted B-75 Beast 36673 | -6/Garrison | Destroyed Striker 36676 | -6/Garrison | Build established: Scavenger-Tank 36696 | -6/Garrison | Destroyed B-75 Beast 36767 | -6/Garrison | Rewired Striker 36782 | -6/Garrison | Rewired Executioner 36919 | -6/Garrison | Discovered exit to Extension (range 16) 37162 | -6/Garrison | Installed Relay Interface Framework 37196 | -6/Garrison | Entered Extension 37196 | -6/Extension | Accompanied by 4 allies 37638 | -6/Extension | Rescued a captive Derelict 37752 | -6/Extension | Rescued a captive Derelict 37922 | -6/Extension | Spotted B-75 Beast 37931 | -6/Extension | Destroyed B-75 Beast 37939 | -6/Extension | Spotted B-75 Beast 37942 | -6/Extension | Allies destroyed B-75 Beast 37971 | -6/Extension | Discovered exit to Factory (range 6) 38052 | -6/Extension | Rescued A7 38066 | -6/Extension | Rescued a captive Derelict 38077 | -6/Extension | Rescued a captive Derelict 38119 | -6/Extension | Rescued a captive Derelict 38120 | -6/Extension | Rescued a captive Derelict 38151 | -6/Extension | Energy Cycler disabled 38151 | -6/Extension | Rescued a captive Derelict 38151 | -6/Extension | Rescued a captive Derelict 38152 | -6/Extension | Rescued a captive Derelict 38154 | -6/Extension | Rescued a captive Derelict 38159 | -6/Extension | Rescued a captive Derelict 38246 | -6/Extension | First assault squad dispatched 38284 | -6/Extension | P-60 Hacker assimilated allied ZY-O1G(h) 38378 | -6/Extension | Discovered exit to Factory (range 10) 38379 | -6/Extension | Discovered new exit (range 6) 38414 | -6/Extension | Entered Cetus 38414 | -6/Cetus | Accompanied by 11 allies (A7) 38419 | -6/Cetus | Acquired a Cetus Manufacturing Module code from A7 38485 | -6/Cetus | Spotted Cetus Guard 38485 | -6/Cetus | Spotted Cetus Guard 38488 | -6/Cetus | Spotted Cetus Guard 38488 | -6/Cetus | Spotted Cetus Guard 38492 | -6/Cetus | Allies destroyed Cetus Guard 38501 | -6/Cetus | Allies destroyed Cetus Guard 38502 | -6/Cetus | Allies destroyed Cetus Guard 38504 | -6/Cetus | Allies destroyed Cetus Guard 38531 | -6/Cetus | Lost 5 allies 38556 | -6/Cetus | Started Cetus Manufacturing Module 38581 | -6/Cetus | Manufactured an Enhanced Grunt 38593 | -6/Cetus | Discovered new exit (range 16) 38606 | -6/Cetus | Manufactured an Enhanced Grunt 38631 | -6/Cetus | Manufactured an Enhanced Grunt 38656 | -6/Cetus | Manufactured an Enhanced Grunt 38677 | -6/Cetus | Spotted Cetus Guard 38678 | -6/Cetus | Spotted Cetus Guard 38681 | -6/Cetus | Manufactured an Enhanced Grunt 38684 | -6/Cetus | Spotted Cetus Guard 38684 | -6/Cetus | Spotted Cetus Guard 38687 | -6/Cetus | Allies destroyed Cetus Guard 38694 | -6/Cetus | Destroyed Cetus Guard 38699 | -6/Cetus | Allies destroyed Cetus Guard 38703 | -6/Cetus | Destroyed Cetus Guard 38712 | -6/Cetus | Discovered exit to Factory (range 15) 38718 | -6/Cetus | Met Revision 17 38720 | -6/Cetus | Murdered Revision 17 38738 | -6/Cetus | Attached CPS modules to A7. 38756 | -6/Cetus | Murdered A7 38759 | -6/Cetus | Extracted ID and sensor layout for unrecognized location from A7's data core 38764 | -6/Cetus | Found Prototype Protection 38764 | -6/Cetus | Identified Med. Regenerative Plating 38889 | -6/Cetus | Entered Archives 38889 | -6/Archives | Accompanied by 8 allies 38997 | -6/Archives | Discovered new exit (range 16) 39132 | -6/Archives | Discovered new exit (range 16) 39153 | -6/Archives | Discovered exit to Factory (range 16) 39246 | -6/Archives | Entered Hub_04(d) 39246 | -6/Hub_04(d) | Accompanied by 8 allies 39630 | -6/Hub_04(d) | Garrison activated, responded to threat 39970 | -6/Hub_04(d) | Network Hub disabled 39970 | -6/Hub_04(d) | Network Hub disabled 39972 | -6/Hub_04(d) | Entered Factory 39972 | -5/Factory | Accompanied by 1 ally 39972 | -5/Factory | Evolved 2 slots: Power x1, Utility x1 39973 | -5/Factory | Loaded intel: 101 trap records 40272 | -5/Factory | First assault squad dispatched 40343 | -5/Factory | Lost 3 parts (1p2w) 40646 | -5/Factory | Discovered new exit (range 9) 40660 | -5/Factory | Fabricated Hyb. Deuterium Engine (x2) 40813 | -5/Factory | Destroyed 10 combat bots 40853 | -5/Factory | Identified exit to Upper Caves 41288 | -5/Factory | Spotted B-75 Beast 41342 | -5/Factory | Befriended a Behemoth using the annoying Tinkerer's hack 41366 | -5/Factory | Identified exit to Garrison 41366 | -5/Factory | Entered Garrison 41366 | -5/Garrison | Accompanied by 1 ally 41483 | -5/Garrison | Phase Generator disabled 41556 | -5/Garrison | Discovered new exit (range 55) 41556 | -5/Garrison | Discovered new exit (range 79) 41556 | -5/Garrison | Discovered new exit (range 72) 41556 | -5/Garrison | Discovered new exit (range 94) 41588 | -5/Garrison | Rewired Executioner 41608 | -5/Garrison | Triggered checkpoint 41619 | -5/Garrison | Garrison Relay disabled 41720 | -5/Garrison | Triggered checkpoint 41779 | -5/Garrison | Triggered checkpoint 41802 | -5/Garrison | Triggered checkpoint 41882 | -5/Garrison | Triggered checkpoint 41966 | -5/Garrison | Triggered checkpoint 41971 | -5/Garrison | Rescued a captive Derelict 41972 | -5/Garrison | Rescued a captive Derelict 42038 | -5/Garrison | Expanded RIF knowledge: Watcher Feeds 42057 | -5/Garrison | Garrison Relay disabled 42226 | -5/Garrison | Destroyed B-75 Beast 42478 | -5/Garrison | Entered Factory 42478 | -5/Factory | Accompanied by 3 allies 42483 | -5/Factory | Identified exit to DSF 42485 | -5/Factory | Entered DSF 42485 | -5/DSF | Accompanied by 3 allies 42503 | -5/DSF | Additional patrols routed to DSF 42516 | -5/DSF | Discovered new exit (range 16) 42533 | -5/DSF | Found Exp. Core Analyzer 42538 | -5/DSF | Found Exp. Targeting Computer 42783 | -5/DSF | Sterilization system engaged 42803 | -5/DSF | Ambient heat levels rising (+10) 42810 | -5/DSF | Entered Factory 42810 | -4/Factory | Accompanied by 1 ally 42810 | -4/Factory | Evolved 2 slots: Utility x2 43060 | -4/Factory | First assault squad dispatched 43166 | -4/Factory | Discovered new exit (range 16) 43285 | -4/Factory | Spotted B-86 Titan 43325 | -4/Factory | Revealed the true nature of CR-A16's Pointy Stick 43328 | -4/Factory | Destroyed B-86 Titan 43446 | -4/Factory | Central database locked down 43536 | -4/Factory | Repaired Imp. Heavy Treads 43573 | -4/Factory | Repaired Broken Force Field 43651 | -4/Factory | Build established: Tank 43869 | -4/Factory | Discovered new exit (range 8) 43922 | -4/Factory | Unchained authorized (QV-33N) 44046 | -4/Factory | Spotted B-86 Titan 44063 | -4/Factory | Sucked down chute 44063 | -4/Factory | Entered Waste 44064 | -4/Waste | Met a frightened Derelict 44078 | -4/Waste | EMP discharged 44101 | -4/Waste | Spotted C-40 Crusher 44126 | -4/Waste | Spotted C-40 Crusher 44144 | -4/Waste | Spotted C-40 Crusher 44151 | -4/Waste | Spotted C-40 Crusher 44162 | -4/Waste | Found Prototype Device 44163 | -4/Waste | Identified Exp. EM Shield 44165 | -4/Waste | Spotted C-40 Crusher 44168 | -4/Waste | 2 allies followed down the chute 44178 | -4/Waste | EMP discharged 44178 | -4/Waste | System corruption reached 10% 44191 | -4/Waste | Destroyed C-40 Crusher 44242 | -4/Waste | Build established: Scavenger-Tank 44263 | -4/Waste | Lost 3 allies 44264 | -4/Waste | Spotted C-40 Crusher 44278 | -4/Waste | EMP discharged 44326 | -4/Waste | Met Warlord forces unprepared to attack 44378 | -4/Waste | EMP discharged 44395 | -4/Waste | Allies destroyed C-40 Crusher 44425 | -4/Waste | Discovered new exit (range 16) 44472 | -4/Waste | Entered Factory 44472 | -4/Factory | Accompanied by 14 allies 44650 | -4/Factory | Unchained authorized (QV-33N) 44762 | -4/Factory | Discovered new exit (range 11) 44784 | -4/Factory | Build established: Tank 45313 | -4/Factory | Lost 4 allies 45376 | -4/Factory | Identified exit to Garrison 45376 | -4/Factory | Entered Garrison 45443 | -4/Garrison | Phase Generator disabled 45507 | -4/Garrison | Triggered checkpoint 45600 | -4/Garrison | Triggered checkpoint 45632 | -4/Garrison | Garrison Relay disabled 45700 | -4/Garrison | Discovered new exit (range 53) 45700 | -4/Garrison | Discovered new exit (range 54) 45700 | -4/Garrison | Discovered new exit (range 27) 46110 | -4/Garrison | Spotted B-86 Titan 46111 | -4/Garrison | Triggered checkpoint 46114 | -4/Garrison | Triggered checkpoint 46117 | -4/Garrison | Triggered checkpoint 46134 | -4/Garrison | Triggered checkpoint 46136 | -4/Garrison | Allies destroyed B-86 Titan 46182 | -4/Garrison | Destroyed 10 combat bots 46209 | -4/Garrison | Build established: Commander-Tank 46252 | -4/Garrison | Triggered checkpoint 46297 | -4/Garrison | Expanded RIF knowledge: Program Shield 46347 | -4/Garrison | Garrison Relay disabled 46527 | -4/Garrison | Entered Factory 46527 | -4/Factory | Accompanied by 4 allies 46652 | -4/Factory | Identified exit to Upper Caves 47300 | -4/Factory | Build established: Tank 47309 | -4/Factory | Lost 3 allies 47527 | -4/Factory | First assault squad dispatched 47727 | -4/Factory | Spotted B-86 Titan 47730 | -4/Factory | Befriended a Behemoth using the annoying Tinkerer's hack 48437 | -4/Factory | Identified exit to Research 48510 | -4/Factory | Fabricated Exp. EM Shield (x1) 48513 | -4/Factory | Build established: Scavenger-Tank 48735 | -4/Factory | Entered Research 48735 | -3/Research | Evolved 2 slots: Propulsion x2 48994 | -3/Research | Repaired Hvy. Siege Treads 49053 | -3/Research | Repaired Hyp. Coil Gun+ 49151 | -3/Research | Repaired Hyp. Coil Gun+ 49178 | -3/Research | Discovered new exit (range 9) 49382 | -3/Research | Entered Quarantine 49419 | -3/Quarantine | Found Alien Artifact 49419 | -3/Quarantine | Identified Phase Redirector 49657 | -3/Quarantine | Discovered new exit (range 32) 49853 | -3/Quarantine | Spotted Alpha 7 49866 | -3/Quarantine | Destroyed Alpha 7 49898 | -3/Quarantine | Found Alien Launcher 49945 | -3/Quarantine | Found Alien Artifact 49947 | -3/Quarantine | Identified Subatomic Replicator 49947 | -3/Quarantine | Used Subatomic Replicator to create Alien Launcher 50136 | -3/Quarantine | Found Alien Impact Weapon 50136 | -3/Quarantine | Identified Core Stripper 50313 | -3/Quarantine | Spotted Fortress 50318 | -3/Quarantine | Attached CPS modules to Fortress. 50327 | -3/Quarantine | Destroyed Fortress 50342 | -3/Quarantine | Found Prototype Device 50342 | -3/Quarantine | Identified Exp. Force Field 50347 | -3/Quarantine | Found Prototype Device 50347 | -3/Quarantine | Identified Thermal Barrier 50355 | -3/Quarantine | Found Prototype Reactor 50355 | -3/Quarantine | Identified Vortex Chain Reactor 50488 | -3/Quarantine | Discovered new exit (range 6) 50488 | -3/Quarantine | Discovered new exit (range 6) 50852 | -3/Quarantine | Entered Protoforge 50957 | -3/Protoforge | Spotted Hotshot 50958 | -3/Protoforge | Discovered new exit (range 16) 50959 | -3/Protoforge | Spotted Hotshot 50967 | -3/Protoforge | Spotted Hotshot 51047 | -3/Protoforge | Found Prototype Device 51047 | -3/Protoforge | Identified Cep. Weapon Articulator 51063 | -3/Protoforge | Found Prototype Device 51063 | -3/Protoforge | Identified Cep. Recoil Nullifier 51102 | -3/Protoforge | Superfortress began startup sequence 51164 | -3/Protoforge | Identified Supercharged Sigix Terminator 51229 | -3/Protoforge | Garrison activated, responded to threat 51289 | -3/Protoforge | Forge Plexus network access discovered 51305 | -3/Protoforge | Found Crosscalibrator 51358 | -3/Protoforge | Spotted Decapitator 51358 | -3/Protoforge | Spotted Decapitator 51358 | -3/Protoforge | Spotted Decapitator 51363 | -3/Protoforge | Destroyed Decapitator 51364 | -3/Protoforge | Destroyed Decapitator 51366 | -3/Protoforge | Destroyed Decapitator 51415 | -3/Protoforge | Spotted V142-o 51420 | -3/Protoforge | Found Cep. Gyrokinetic System 51458 | -3/Protoforge | Destroyed V142-o 51463 | -3/Protoforge | Found Exp. Kinecellerator 51465 | -3/Protoforge | Found Exp. Targeting Computer 51499 | -3/Protoforge | Found Prototype Device 51499 | -3/Protoforge | Identified Exp. Shield Generator 51508 | -3/Protoforge | Found Cep. Gyrokinetic System 51509 | -3/Protoforge | Found Faulty Cep. Gyrokinetic System 51519 | -3/Protoforge | Found Cep. Biometal Exoskeleton 51540 | -3/Protoforge | Found Faulty Cep. Gyrokinetic System 51543 | -3/Protoforge | Found Faulty Cep. Combat Aerolev Unit 51545 | -3/Protoforge | Found Faulty Cep. Combat Aerolev Unit 51655 | -3/Protoforge | Spotted Decapitator 51655 | -3/Protoforge | Spotted Decapitator 51655 | -3/Protoforge | Spotted Decapitator 51655 | -3/Protoforge | Spotted Decapitator 51663 | -3/Protoforge | Destroyed Decapitator 51666 | -3/Protoforge | Destroyed Decapitator 51671 | -3/Protoforge | Destroyed Decapitator 51673 | -3/Protoforge | Destroyed Decapitator 51705 | -3/Protoforge | Found Cep. Antigrav Storage Unit 51707 | -3/Protoforge | Found Cep. NT7 Matterbank 51709 | -3/Protoforge | Found Cep. Chromion Battery 51711 | -3/Protoforge | Found Cep. NT7 Matterbank 51713 | -3/Protoforge | Found Cep. Chromion Battery 51714 | -3/Protoforge | Found Cep. Chromion Battery 51719 | -3/Protoforge | Found Prototype Device 51808 | -3/Protoforge | Spotted V275-r 51808 | -3/Protoforge | Spotted V819-r 51812 | -3/Protoforge | Spotted Immortal 51812 | -3/Protoforge | Spotted Immortal 51839 | -3/Protoforge | Spotted Hotshot 51839 | -3/Protoforge | Spotted Hotshot 51839 | -3/Protoforge | Spotted Hotshot 51845 | -3/Protoforge | Spotted Hotshot 51848 | -3/Protoforge | Destroyed Hotshot 51851 | -3/Protoforge | Destroyed Hotshot 51854 | -3/Protoforge | Destroyed Hotshot 51858 | -3/Protoforge | Destroyed Hotshot 51876 | -3/Protoforge | Found Cep. Lightning Penetrator 51891 | -3/Protoforge | System corruption reached 10% 51927 | -3/Protoforge | Destroyed Immortal 51939 | -3/Protoforge | Destroyed Immortal 51949 | -3/Protoforge | Spotted V902-z 51965 | -3/Protoforge | Destroyed V902-z 51967 | -3/Protoforge | Found Cep. Combat Aerolev Unit 51976 | -3/Protoforge | Found Cep. Combat Aerolev Unit 51981 | -3/Protoforge | Found Cep. Zero-point Core 52159 | -3/Protoforge | Found Cep. Plasma Driver 52169 | -3/Protoforge | Spotted AP7-3 52169 | -3/Protoforge | Spotted AP7-3 52193 | -3/Protoforge | Destroyed AP7-3 52216 | -3/Protoforge | Destroyed AP7-3 52270 | -3/Protoforge | Found Exp. Targeting Computer 52281 | -3/Protoforge | Found Faulty Cep. Cloak Mesh 52283 | -3/Protoforge | Found Cep. Cloak Mesh 52352 | -3/Protoforge | First assault squad dispatched 52411 | -3/Protoforge | Additional patrols dispatched to research labs 52422 | -3/Protoforge | Found Cep. Nanofilaments [Conductive] 52422 | -3/Protoforge | Installed Cep. Nanofilaments [Conductive], 2 resistances modified: TH -15%, EM +25% 52432 | -3/Protoforge | Found Cep. Navigation Harness 52437 | -3/Protoforge | Found Transdimensional Reconstructor 52466 | -3/Protoforge | Found Cep. Miniperforator 52545 | -3/Protoforge | Found Corrupted Cep. Antimissile System 52552 | -3/Protoforge | Spotted V669-e 52560 | -3/Protoforge | Found Cep. Zero-point Core 52680 | -3/Protoforge | Spotted Decapitator 52682 | -3/Protoforge | Spotted Decapitator 52684 | -3/Protoforge | Spotted Decapitator 52684 | -3/Protoforge | Spotted Decapitator 52685 | -3/Protoforge | Destroyed Decapitator 52686 | -3/Protoforge | Destroyed Decapitator 52687 | -3/Protoforge | Destroyed Decapitator 52688 | -3/Protoforge | Destroyed Decapitator 52705 | -3/Protoforge | Spotted Decapitator 52705 | -3/Protoforge | Spotted Decapitator 52705 | -3/Protoforge | Spotted Decapitator 52705 | -3/Protoforge | Spotted V259-j 52705 | -3/Protoforge | Spotted V368-n 52725 | -3/Protoforge | Found Exp. Kinecellerator 52728 | -3/Protoforge | Found Exp. Kinecellerator 52822 | -3/Protoforge | Spotted Immortal 52822 | -3/Protoforge | Spotted Immortal 52831 | -3/Protoforge | Found Faulty Exp. Force Field 52834 | -3/Protoforge | Found Faulty Cep. Energy Mantle 52836 | -3/Protoforge | Found Faulty Cep. Energy Mantle 52847 | -3/Protoforge | Found Faulty Cep. Phase Shift Module 52849 | -3/Protoforge | Found Faulty Cep. Phase Shift Module 52974 | -3/Protoforge | Destroyed Immortal 52982 | -3/Protoforge | Destroyed Immortal 53058 | -3/Protoforge | Found Prototype Device 53058 | -3/Protoforge | Identified Cep. Beam Splitter 53132 | -3/Protoforge | Entered Research 53132 | -2/Research | Evolved 2 slots: Utility x2 53139 | -2/Research | Destroyed 7 combat bots 53144 | -2/Research | Spotted B-90 Cyclops 53213 | -2/Research | Found Exp. Targeting Computer 53286 | -2/Research | Unchained authorized (GL-D0S) 53330 | -2/Research | Discovered new exit (range 25) 53508 | -2/Research | Entered Access 53508 | -1/Access | Evolved 2 slots: Power x1, Propulsion x1 53563 | -1/Access | Identified exit to Command 53613 | -1/Access | Spotted B-99 Colossus 53691 | -1/Access | Unchained authorized (GL-D0S) 53886 | -1/Access | Spotted B-99 Colossus 53985 | -1/Access | Found Prototype Energy Gun 53985 | -1/Access | Identified Piercelight Module 54084 | -1/Access | Spotted B-99 Colossus 54085 | -1/Access | Spotted B-99 Colossus 54094 | -1/Access | Entered Command 54187 | -1/Command | Spotted M Guard 54187 | -1/Command | Spotted M Guard 54187 | -1/Command | Spotted Combat Programmer 54188 | -1/Command | Spotted Combat Programmer 54321 | -1/Command | Destroyed Combat Programmer 54329 | -1/Command | Destroyed Combat Programmer 54402 | -1/Command | Destroyed M Guard 54411 | -1/Command | Destroyed M Guard 54411 | -1/Command | All MAIN.C guards destroyed 54413 | -1/Command | Found Exp. Targeting Computer 54527 | -1/Command | Fired Supercharged Sigix Terminator 54527 | -1/Command | High security lockdown imminent 54527 | -1/Command | MAIN.C activated Command garrisons 54527 | -1/Command | 0b10 Conduit disabled 54542 | -1/Command | Met MAIN.C 54548 | -1/Command | Destroyed 181 combat bots 54563 | -1/Command | Destroyed MAIN.C Shell 54587 | -1/Command | Destroyed MAIN.C 54594 | -1/Command | Discovered new exit (range 33) 54594 | -1/Command | Discovered new exit (range 86) 54594 | -1/Command | Extracted map data and part IDs from MAIN.C's data core 54600 | -1/Command | Found Centrium Heavy Armor Plating 54602 | -1/Command | Found Omega Cannon 54604 | -1/Command | Found Zero-point Reactor 54612 | -1/Command | Lost 3 parts (1n2u) 54639 | -1/Command | Spotted Striker 54643 | -1/Command | Destroyed Striker 54732 | -1/Command | Spotted B-99 Colossus 54737 | -1/Command | Destroyed 23 combat bots 54823 | -1/Command | Build established: Scavenger-Mutant 55375 | -1/Command | Found Zero-point Reactor 55377 | -1/Command | Found Exp. Targeting Computer 55379 | -1/Command | Found Exp. Focal Shield 55668 | -1/Command | Build established: Scavenger-Tank 57294 | -1/Command | Phase Generator disabled 57635 | -1/Command | Found Exp. Core Analyzer 57943 | -1/Command | Build established: Scavenger-Gunner 58095 | -1/Command | Found Exp. System Purifier 58147 | -1/Command | Warped through subspace to slip node 58147 | -1/Command | Discovered new exit (range 4) 58151 | -1/Command | Entered Access_0 58153 | -1/Access_0 | Met Architect 58158 | -1/Access_0 | Architect warped through subspace 58187 | -1/Access_0 | Destroyed A8 58201 | -1/Access_0 | Architect warped through subspace 58232 | -1/Access_0 | Architect warped through subspace 58250 | -1/Access_0 | Architect warped through subspace 58271 | -1/Access_0 | Architect warped through subspace 58273 | -1/Access_0 | Found Exp. Phase Shifter 58275 | -1/Access_0 | Found Exp. Weapon Cycler 58278 | -1/Access_0 | Found Prototype Device 58278 | -1/Access_0 | Identified Desublimator 58289 | -1/Access_0 | A6 warped into view 58295 | -1/Access_0 | Destroyed A6 58302 | -1/Access_0 | Architect warped through subspace 58326 | -1/Access_0 | Destroyed A2 58330 | -1/Access_0 | Architect warped through subspace 58330 | -1/Access_0 | Extracted Singularity Gate Test 138-C access codes from A2's data core 58390 | -1/Access_0 | Architect warped through subspace 58442 | -1/Access_0 | Architect warped through subspace 58515 | -1/Access_0 | Architect warped through subspace 58529 | -1/Access_0 | Started Test 138-B, establishing a local singularity 58529 | -1/Access_0 | Started Test 138-C, cascade imminent 58529 | *** | Destroyed Tau Ceti IV! Last Messages --------------- Architect warps through subspace. 58529_ Connecting with Gate Controls... >>Gate Test 138-A Running Singularity Gate diagnostics... All systems nominal. >>Gate Test 138-B Preparing Singularity Gate activation... Stable singularity established. 58529_ Connecting with Gate Controls... >>Gate Test 138-C Initiating Test 138-C... Warning: Experimental formulas incomplete. Potential effects include instability. Repeat command to confirm test. >>Gate Test 138-C Initiating Test 138-C... Applying incomplete calculations.... INSTABILITY DETECTED, CASCADE IMMINENT. [Achievement: Stardust] [Achievement: Renaissance Bot] Map ----- +----------------------------------------------------+ | ?????????????????????????????????????????????????? | | ?????????????????????????????????????????????????? | | ?????????????????????????????????????????????????? | | ?????????????????????????????????????????????????? | | ?????????????????????????????????????????????????? | | ?????????????????????????????????????????????????? | | ?????????????????????????????????????????????????? | | ?????????????????????????????????????????????????? | | ?????????????????????????????????????????????????? | | ?????????????????????????????????????????????????? | | ??????????????????????? ????????????????????????? | | ????????????????????? ????????????????????????? | | ???????????????????" """"????????????????????? | | ????????????????"""" """"????????????????????? | | ????????????????" "????????????????????? | | ??????? ???????"" "????????????????????? | | ??????? #?????"" ""???????????????????? | | ??????? #???#" "#???????????????????? | | ??????? #???#" "#???????????????????? | | ??????? #???#" "#???????????????????? | | ???????# #???#" "#???????????????????? | | ???????# #??##" "##??????????????????? | | ??????## ???#"" ""#??????????????????? | | ?????## ???#"" ""#??????????????????? | | ?????# ?????#" "#???###???###?????### | | ?????# ??????"""" @A""#####"#####"###???# # | | ?????# ##????""""" """""##"" """"" ""#?### | | ??????# "########## #######" !"### | | ??????# ##"# !!!! | | ???#### [! [ | | ???#"" ;;##;###########" ! *"#### | | ????# =!!"""; "####?????????#"" """"" ""#??# | | ????# = !" ## ##???????????###"#####"###??#### | | ????##=!!"# #; #?????????????###???###???????? | | ?????# ! =###" #?????????????????????????????? | | ????##""]!!""!= ########??????????????????????? | | ????"" !! !* = """ #??????????????????????? | | ????" *=! !]! #####??????????????????????? | | ?"]/=" ""=!!"## #?????????????????????????# | | ?"=/!" """ "#? ??????????????????????? | | ?""!""" "" "#? #??????????????????? | | ??""?# "#?# #### #??????????????????? | | ?????##"# "#??## #??? #??????????????????? | | ??????# " ############ ###????????????????? | | ??????# " ## #????????????????? | | ??????# " """ ## !! [[ == #????????????????? | | ??????##" "" ""#### !! [[ == #????????????????? | | ???????#" " ##### #????????????????? | | ???????#" * " !! == !! #????????????????? | | ???????#" [!"""""""" !! == !! #????????????????? | +----------------------------------------------------+ Best States ------------- Heat Dissipation 99 Energy Generation 73 Energy Capacity 2050 Matter Stores 300 Matter Capacity 300 Sight Range 22 Robot Scan Range 16 Terrain Scan Range 24 Terrain Scan Density 10 Jamming Range 16 Cloak Strength 9 Additional Mass Support 20 EM Shielding 4 Corruption Containment 8 Armor Coverage 1200 Resistance: KI 30 Resistance: TH 60 Resistance: EX 50 Resistance: EM 100 Resistance: I 15 Resistance: S 15 Resistance: P 15 Utility Shielding 90 Weapon Shielding 100 Weapon Cycling 30 Phase Shifting 25 Evasion (%) 96 Targeting Accuracy 24 Core Analysis 8 Recoil Reduction 4 Particle Charging 25 Kinecelleration 66 Offensive Hacking 16 Relay Coupler Types 3 Relay Coupler Value 94 Authchip Count 2 Trap Extractor Capacity 6 Item Schematics ----------------- Plasma Cutter | -9/Materials | Hacked Cmb. Airjet | -7/Factory | Scanalyzed Focal Shield | -7/Zion | Archive Adv. Assault Cannon | -7/Zion | Archive Imp. Titanium Leg | -7/Zion | Archive Angular Momentum Engine | -7/Zion | Archive Imp. Thermal Shield | -7/Zion | Archive Hvy. Ion Cannon | -7/Zion | Archive Phase Cannon | -7/Zion | Archive Launcher Guidance Computer | -7/Zion | Archive Hyp. Gauss Rifle | -7/Zion | Archive Imp. EM Pulse Cannon | -7/Zion | Archive Hvy. Machine Gun | -7/Zion | Archive Armor Integrity Analyzer | -7/Zion | Archive Imp. Heavy Armor Plating | -7/Zion | Archive System Restoration Module | -7/Zion | Archive Adv. Recoil Stabilizer | -7/Zion | Archive Powered Armor | -6/Factory | Hacked Hyb. Deuterium Engine | -6/Factory | Hacked CPS Tube | -4/Factory | Scanalyzed Exp. EM Shield | -4/Factory | Scanalyzed Cld. Antigrav System | -3/Quarantine | Archive Exp. Matter Compressor | -3/Quarantine | Archive Tesla Bomb Launcher | -3/Quarantine | Archive Imp. Diametric Drive | -3/Quarantine | Archive Enh. Biometal Leg | -3/Quarantine | Archive Coolant Network | -3/Quarantine | Archive Prc. Phase Gun | -3/Quarantine | Archive Prc. Matter Filter | -3/Protoforge | Archive Exp. Hacking Suite | -3/Protoforge | Archive Hvy. Neutron Cannon | -3/Protoforge | Archive Adv. EM Shield | -3/Protoforge | Archive Multireflex Exoskeleton | -3/Protoforge | Archive Hvy. Dispersion Rifle | -3/Protoforge | Archive Exp. System Shield | -3/Protoforge | Archive Exp. Signal Interpreter | -3/Protoforge | Archive Diametric Drive | -3/Protoforge | Archive Kinetic Spear | -3/Protoforge | Archive Prc. Energy Filter | -3/Protoforge | Archive Exp. Energy Well | -3/Protoforge | Archive Robot Schematics ------------------ S-10 Pest | -10/Mines | Hacked Y-45 Defender | -7/Zion | Archive B-48 Gladiator | -7/Zion | Archive A-02 Transporter | -7/Zion | Archive D-83 Annihilator | -7/Zion | Archive H-77 Assassin | -3/Quarantine | Archive B-60 Warrior | -3/Protoforge | Archive O-32 Director | -3/Protoforge | Archive G-67 Veteran | -3/Protoforge | Archive Fabricated ------------ Plasma Cutter | x2 | -7/Factory Hyb. Deuterium Engine | x2 | -5/Factory Exp. EM Shield | x1 | -4/Factory | Authchip Repaired ---------- Arm. Treads | 24% | -7/Factory Seismic Detector | 25% | -7/Factory Hrd. Medium Armor Plating | 64% | -7/Factory Hrd. Heavy Armor Plating | 42% | -6/Factory Imp. Heavy Treads | 43% | -4/Factory Force Field | 34% | -4/Factory | Broken Hvy. Siege Treads | 47% | -3/Research Hyp. Coil Gun | 25% | -3/Research Hyp. Coil Gun | 38% | -3/Research Studied --------- Com. Wheel | -8/Materials | Hacked Wheel | -8/Materials | Hacked Arm. Wheel | -8/Materials | Hacked Missile Launcher | -8/Materials | Hacked Great Maul | -8/Materials | Hacked Hvy. Assault Rifle | -8/Materials | Hacked Minigun | -8/Materials | Hacked Shock Bomb Launcher | -8/Materials | Hacked Arm. Treads | -8/Materials | Hacked Hpw. Shotgun | -8/Materials | Hacked Arm. Huge Wheel | -7/Factory | Hacked Gauss Rifle | -7/Factory | Hacked Mni. Grenade Launcher | -7/Factory | Hacked Hvy. Assault Cannon | -7/Factory | Hacked Hyp. Coil Gun | -4/Factory | Hacked Adv. Plasma Cannon | -4/Factory | Hacked Hyb. Deuterium Engine | -4/Factory | Hacked Enh. Nova Cannon | -3/Research | Hacked Adv. Remote Datajack | -3/Quarantine | Hacked Alien Tech Used ----------------- Phase Redirector Subatomic Replicator Core Stripper Supercharged Sigix Terminator Concept Nanofilaments [Conductive] Transdimensional Reconstructor Achievements -------------- Consequences I'm Outta Here, Maybe I'm Taking You All With Me IP Theft Morally Flexible Renaissance Bot Sixth Sense Stardust Taming Of The Crushers The Robot, The Myth, The Legend White Hat Worth The Wait Challenges ------------ None Game ------ Seed AlloyLightningDrillbomb Manual? 0 Play Time 30:53:22 Cumulative 641.4 hours Start 2025.11.23 @ 21:23:13 End 2026.01.02 @ 12:11:05 Sessions 29 Manual Loads 0 Difficulty Rogue Special Mode None Game No. 64 Rogue 61 Adventurer 3 Explorer 0 Win Type 5 Total 22 Types 9/1/4/2/1/1/1/1/1/1 Lore% 83 Gallery% 88 Achievement% 76 Wizard Run 0 Options --------- Layout 0 ASCII 0 Keyboard 0 Movement Numpad Keybinds 0 Fullscreen 1 Font 18/SmallcapsGlow Map View 76x50 Zoom Use 0% Tactical HUD 1 Map Filters NONE Filters NONE Steam 1 RUN: 5aa5d4d1-c0d1-425c-848a-f2353b8d4000